Cogmind - Beta 14 @@@ ROGUE MODE // 2025.02.28 @ 18:08:17 Player: UberDoot Result: Destroyed by H-88 Terminator with KE Penetrator Performance ------------- Evolutions (8) 4000 Regions Visited (34) 6800 Robots Destroyed (501) 2505 Value Destroyed (22466) 22466 Prototype IDs (72) 1440 Alien Tech Used (0) 0 Bonus (10770) 10770 TOTAL SCORE: 47981 Bonus ------- High Alert Combat Kills 3239 Follower Combat Kills 1497 Entered Garrisons 800 Network Hubs Disabled 400 Aligned with FarCom 300 Met Imprinter 300 Triggered Deep Caves Wall 500 Exposed GOLEM Chamber 500 Acquired ECA 300 Built Enhanced Grunts 300 Met R17 at Cetus 500 Met R17 at Research 2000 Scanned by Researcher 500 Friendly Fire -366 Cogmind --------- Core Integrity 0/1450 Matter 40/300 Energy 41/100 System Corruption 3% Temperature Cool (0) Movement Core (50) Location -2/Quarantine Parts ------- > --- POWER (3) -------- (None) > --- PROPULSION (6) --- (None) > --- UTILITY (11) ----- (None) > --- WEAPON (3) ------- (None) > --- INVENTORY (5) ---- Improved Heavy Armor Plating Centrium Light Armor Plating Transdimensional Reconstructor Compact Tesla Bomb Launcher Peak State ------------ > --- POWER ------------ Assembled Flux Generator > --- PROPULSION ------- Centrium Heavy Treads Assembled Alloy Leg Assembled Alloy Leg > --- UTILITY ---------- Assembled Nanovents Assembled Nanovents Assembled Nanovents Huge Storage Unit Assembled Biocell Array Assembled Suspension Frame Centrium Medium Armor Plating Assembled Alloy Armor GOLEM Unit > --- WEAPON ----------- Assembled Focal Cannon Assembled Focal Cannon Assembled Focal Cannon > --- INVENTORY -------- Zionite Light DM Reactor Quantum Reactor Centrium Heavy Treads Centrium Heavy Treads Experimental Heat Sink Advanced Cooling System Advanced Cooling System Zionite Biocell Zionite Biocell Zionite Biocell Seismic Detector Centrium Medium Armor Plating Centrium Medium Armor Plating Centrium Medium Armor Plating Improved Hacking Suite Decoy Drone Bay GOLEM Unit GOLEM Unit Latent Energy Streamer Rocket Array [Rating: 178] Favorites ----------- Power Assembled Flux Generator Engine Heavy Ion Engine Power Core Fission Core Reactor Assembled Flux Generator Propulsion Assembled Alloy Leg Treads Light Treads Leg Assembled Alloy Leg Wheel Armored Huge Wheel Flight Unit Q-thruster Utility Huge Storage Unit Device GOLEM Unit Storage Huge Storage Unit Processor Improved Targeting Computer Hackware Improved Hacking Suite Protection Assembled Alloy Armor Weapon Assembled Focal Cannon Energy Gun Gatling Laser Energy Cannon Assembled Focal Cannon Ballistic Gun KE Penetrator Ballistic Cannon Mini Assault Cannon Launcher Precision Grenade Launcher Special Weapon Improved Remote Datajack Slashing Weapon Ripper Build | -11 -10 -10 -9 -9 -9 -8 -8 -8 -8 -7 -7 -7 -7 -7 -7 -7 -6 -6 -6 -6 -6 -5 -5 -5 -5 -5 -5 -4 -4 -4 -3 -3 -2 -2 ------- Run | Yrd Mat Min Mat Min Exi Min Mat Gar Mat Fac Gar Fac Gar Fac Gar Fac Fac Low Low Zio Dee Pro Fac Ext Cet Arc Hub Fac Was Fac Res Tes Res Qua Slots Evolved 16 | . . . 2 . . . 2 . . 2 . . . . . . 2 . . . . . 2 . . . . 2 . . 2 . 2 . Power 2 | . . . . . . . . . . . . . . . . . . . . . . . 1 . . . . . . . 1 . . . Propulsion 4 | . . . . . . . 1 . . 1 . . . . . . . . . . . . . . . . . . . . . . 2 . Utility 9 | . . . 1 . . . 1 . . 1 . . . . . . 2 . . . . . 1 . . . . 2 . . 1 . . . Weapon 1 | . . . 1 . . . . . . . . . . . . . . . . . . . . . . . . . . . . . . . Parts Attached 529 | 7 14 4 25 2 1 2 35 27 11 11 19 9 16 21 21 50 43 9 6 24 56 2 28 9 2 4 1 6 4 29 14 11 4 2 Power 33 | 1 3 . 1 . . . 3 5 . . 2 2 . 1 2 1 1 1 . 1 4 . . . . 1 . . 1 1 2 . . . Engine 16 | 1 3 . 1 . . . 2 3 . . 1 2 . 1 . 1 . . . 1 . . . . . . . . . . . . . . Core 7 | . . . . . . . 1 2 . . 1 . . . 1 . 1 1 . . . . . . . . . . . . . . . . Reactor 10 | . . . . . . . . . . . . . . . 1 . . . . . 4 . . . . 1 . . 1 1 2 . . . Propulsion 79 | 2 5 1 4 . . . 10 7 1 1 2 2 2 3 2 9 6 . 1 . 11 . . 1 1 1 . 1 . 2 1 2 1 . Treads 56 | 2 5 1 3 . . . 8 6 . . 1 1 1 2 2 9 5 . . . 3 . . . 1 1 . 1 . 2 1 1 . . Leg 7 | . . . . . . . . . . . . . . . . . . . . . 5 . . 1 . . . . . . . 1 . . Wheel 15 | . . . 1 . . . 2 1 1 1 1 1 1 1 . . 1 . 1 . 3 . . . . . . . . . . . . . Hover . | . . . . . . . . . . . . . . . . . . . . . . . . . . . . . . . . . . . Flight 1 | . . . . . . . . . . . . . . . . . . . . . . . . . . . . . . . . . 1 . Utility 252 | 2 2 3 8 2 1 . 10 3 9 5 6 5 1 8 9 18 29 6 3 5 29 2 28 8 1 2 1 4 3 23 8 6 1 1 Device 152 | 1 1 2 4 1 1 . 2 2 6 4 2 2 1 5 2 9 20 4 3 3 12 2 22 5 . 1 . 3 . 19 7 4 1 1 Storage 18 | 1 1 . 1 1 . . 1 . . . . . . 1 . 2 . . . . 4 . 4 . . . . 1 1 . . . . . Processor 14 | . . . . . . . 3 . . 1 . . . . 2 1 3 1 . 1 . . . 2 . . . . . . . . . . Hackware 3 | . . . . . . . . . . . . . . . . . 1 . . . . . . . . 1 1 . . . . . . . Protection 65 | . . 1 3 . . . 4 1 3 . 4 3 . 2 5 6 5 1 . 1 13 . 2 1 1 . . . 2 4 1 2 . . Artifact . | . . . . . . . . . . . . . . . . . . . . . . . . . . . . . . . . . . . Weapon 165 | 2 4 . 12 . . 2 12 12 1 5 9 . 13 9 8 22 7 2 2 18 12 . . . . . . 1 . 3 3 3 2 1 Energy Gun 70 | 2 2 . 2 . . 1 4 . . 5 5 . 11 4 6 12 4 1 1 1 5 . . . . . . . . . 1 1 1 1 Energy Cannon 24 | . . . 8 . . . . . . . . . . . . 4 3 . 1 2 4 . . . . . . . . . 1 . 1 . Ballistic Gun 21 | . . . 1 . . . 4 . . . . . . 3 1 2 . . . 8 . . . . . . . . . 2 . . . . Ballistic Cannon 17 | . 2 . 1 . . . 3 8 1 . . . . 1 . . . . . . . . . . . . . . . . . 1 . . Launcher 28 | . . . . . . 1 . 3 . . 4 . 2 1 1 3 . 1 . 7 2 . . . . . . . . 1 1 1 . . Special Weapon 3 | . . . . . . . 1 . . . . . . . . 1 . . . . . . . . . . . 1 . . . . . . Impact Weapon . | . . . . . . . . . . . . . . . . . . . . . . . . . . . . . . . . . . . Slashing Weapon 2 | . . . . . . . . 1 . . . . . . . . . . . . 1 . . . . . . . . . . . . . Piercing Weapon . | . . . . . . . . . . . . . . . . . . . . . . . . . . . . . . . . . . . Special Melee Weapon . | . . . . . . . . . . . . . . . . . . . . . . . . . . . . . . . . . . . Unidentified Prototypes 34 | . . . 3 . . . 3 . . 2 . . . . 1 3 . . . . 11 . . . 2 . . . . 1 2 5 1 . Corrupted Parts 8 | . . . . . . . . . . . . . 1 2 . . . . . . . . . . 1 1 . . 1 2 . . . . System Corruption 45 | . . . . . . . . . . . . . 1 7 . . . . . . . . . . 3 6 . . 8 20 . . . . Parts Lost 134 | . . . . . . . 10 3 . . 6 . 4 6 3 8 11 1 6 4 12 . 2 1 . . . . 8 20 1 21 4 3 Power 11 | . . . . . . . 1 1 . . 2 . . 1 1 . . . . 1 1 . . . . . . . 1 . . 2 . . Propulsion 25 | . . . . . . . 4 1 . . 1 . 1 3 . 2 . . 1 . 3 . . . . . . . 1 4 . 2 1 1 Utility 65 | . . . . . . . 2 . . . 1 . . 2 2 2 6 1 5 1 7 . 1 1 . . . . 5 12 1 13 2 1 Weapon 33 | . . . . . . . 3 1 . . 2 . 3 . . 4 5 . . 2 1 . 1 . . . . . 1 4 . 4 1 1 Highest Loss Streak 20 | . . . . . . . 4 2 . . 2 . 2 5 2 4 6 1 6 2 5 . 1 1 . . . . 8 11 1 20 3 1 To Critical Strikes 2 | . . . . . . . . . . . . . . . . . . . . . . . . . . . . . 2 . . . . . Average Slot Usage (%) 86 | . 99 100 99 100 100 100 99 93 99 99 93 97 100 97 76 83 89 86 75 81 86 93 87 87 82 82 82 83 70 74 50 38 9 2 Engine 3 | . 14 14 11 11 11 11 5 2 . . 5 7 7 7 1 6 . . . 2 . . . . . . . . . . . . . . Core 1 | . . . . . . . 3 6 9 7 1 . . . 2 . 5 6 6 3 . . . . . . . . . . . . . . Reactor 2 | . . . . . . . . . . . . . . . 3 . . . . . 5 6 5 5 5 5 5 5 4 4 6 3 . . Treads 10 | . 27 28 19 11 11 11 18 19 25 15 14 15 15 14 14 18 9 6 6 6 4 . . . 4 5 5 4 5 4 . 1 3 . Leg 6 | . . . . . . . . . . . . . . . . . . . . . 11 26 23 23 11 11 11 10 9 9 7 4 . . Wheel 3 | . . . 2 11 11 11 8 5 1 15 14 15 15 13 1 . 5 6 5 6 2 . . . . . . . . . . . . . Device 13 | . 14 1 11 11 11 11 7 11 9 7 1 5 7 6 9 10 21 20 15 12 13 19 17 16 11 11 5 25 17 23 22 15 2 . Storage 9 | . 14 14 11 11 11 11 9 9 9 7 7 7 7 7 7 7 6 6 6 6 10 13 16 11 11 11 11 10 8 9 2 1 . . Processor 6 | . . . . . . . 9 9 9 14 15 15 15 15 4 6 4 8 13 19 11 . . 4 5 5 5 . . . . . . . Protection 6 | . . 12 11 11 11 11 9 4 8 7 7 6 7 7 7 7 12 6 1 5 6 6 5 5 11 11 11 10 8 5 1 4 . . Energy Gun 7 | . 20 . . 11 11 10 11 . . 21 22 23 22 12 18 18 17 5 5 2 5 . . . . . . . . . . . . . Energy Cannon 9 | . . . 23 22 22 22 6 . . . . . . . . 2 2 13 13 5 10 20 17 16 17 17 17 14 13 13 7 4 1 . Ballistic Gun 1 | . . . . . . . 6 . . . . . . 9 2 1 . . . 6 1 . . . . . . . . . . . . . Ballistic Cannon 3 | . 7 28 9 . . . 2 24 27 1 . . . . . . . . . . . . . . . . . . . . . . . . Peak Build Rating 178 | 8 12 15 27 32 32 28 44 45 47 50 51 51 50 50 80 73 72 75 75 76 135 132 155 146 150 150 150 178 165 167 173 164 49 13 Average Rating 79 | 6 10 13 22 30 29 28 35 41 40 48 45 48 43 43 68 65 63 72 61 69 99 126 144 137 147 149 149 161 145 144 104 79 31 7 On Entrance 69 | . 8 12 15 25 32 28 28 43 41 38 49 46 50 43 45 73 56 71 75 58 75 132 126 146 139 150 150 149 162 154 2 164 38 11 Naked Turns 129 | . . . . . . . . . . . . . . . . . . . . . . . . . . . . . . 36 . 16 1 76 Heaviest Build 219 | 13 36 37 50 65 66 67 119 131 117 113 119 119 109 109 127 132 129 122 121 126 145 143 182 182 181 181 181 187 219 219 126 126 17 6 Greatest Support 150 | 40 40 42 45 12 12 12 60 60 60 24 40 24 40 40 150 150 115 28 28 28 116 116 136 116 116 60 60 80 80 80 80 80 60 3 Greatest Overweight (x) 33 | . 6 . 3 5 5 5 11 33 9 4 4 4 4 6 3 1 4 4 4 4 4 1 1 2 3 3 3 3 4 3 4 1 . 1 Average Overweight (x) 2 | . . . 1 3 5 5 5 7 1 4 3 4 3 3 . . 3 4 4 3 2 1 . 1 2 3 2 2 2 2 1 . . . Largest Inventory Capacity 25 | 8 15 15 15 20 20 20 25 25 25 25 25 25 25 25 25 25 25 25 25 25 25 25 25 25 25 25 25 25 25 25 5 5 5 5 Average Capacity 22 | 7 10 15 15 17 20 20 21 25 25 25 25 25 25 25 25 25 25 25 25 25 25 25 24 25 25 25 25 24 20 23 5 5 5 5 Most Carried 25 | 8 15 15 15 16 20 20 25 25 25 25 25 25 25 25 25 25 25 24 24 25 25 25 25 25 25 25 25 25 24 25 5 5 5 5 Average Carried 21 | 4 9 14 14 15 18 20 21 24 24 24 24 24 24 24 24 24 23 22 18 24 24 25 24 24 24 24 24 22 11 18 2 4 4 5 Final Capacity 25 | 8 15 15 15 20 20 20 25 25 25 25 25 25 25 25 25 25 25 25 25 25 25 25 25 25 25 25 25 25 25 5 5 5 5 5 Final Carried 25 | 8 15 15 15 16 20 20 25 25 25 25 25 25 25 25 25 22 22 24 17 25 25 25 25 25 25 25 25 24 10 3 5 5 5 5 Class Distribution -------------------- 17% | Scavenger-Gunner 17% | Golem 11% | Skirmisher 10% | Mutant 9% | Tank 9% | Scavenger-Tank 8% | Commander-Golem 7% | Scavenger-Golem 4% | Gunner 3% | Scavenger-Skirmisher Dominant Class ---------------- Mutant | -10/Materials Mutant | -10/Mines Tank | -9/Materials Tank | -9/Mines Tank | -9/Exiles Skirmisher | -8/Mines Skirmisher | -8/Materials Skirmisher | -8/Garrison Skirmisher | -8/Materials Skirmisher | -7/Factory Gunner | -7/Garrison Scavenger-Skirmisher | -7/Factory Scavenger-Tank | -7/Garrison Scavenger-Tank | -7/Factory Scavenger-Gunner | -7/Garrison Scavenger-Gunner | -7/Factory Scavenger-Tank | -6/Factory Scavenger-Gunner | -6/Lower Caves Scavenger-Gunner | -6/Lower Caves Scavenger-Gunner | -6/Zion Scavenger-Gunner | -6/Deep Caves Scavenger-Golem | -5/Proximity Caves Scavenger-Golem | -5/Factory Golem | -5/Extension Commander-Golem | -5/Cetus Commander-Golem | -5/Archives Commander-Golem | -5/Hub_04(d) Golem | -4/Factory Golem | -4/Waste Golem | -4/Factory Golem | -3/Research Mutant | -3/Testing Mutant | -2/Research Mutant | -2/Quarantine Resources | -11 -10 -10 -9 -9 -9 -8 -8 -8 -8 -7 -7 -7 -7 -7 -7 -7 -6 -6 -6 -6 -6 -5 -5 -5 -5 -5 -5 -4 -4 -4 -3 -3 -2 -2 ----------- Run | Yrd Mat Min Mat Min Exi Min Mat Gar Mat Fac Gar Fac Gar Fac Gar Fac Fac Low Low Zio Dee Pro Fac Ext Cet Arc Hub Fac Was Fac Res Tes Res Qua Matter Collected 9828 | 270 140 104 622 20 10 2 970 918 351 133 350 76 214 396 454 805 456 156 30 779 1043 55 266 214 55 71 133 67 25 488 90 37 . 28 Remotely 316 | . . . . . . . . . 98 . . . . . . . . . . 72 146 . . . . . . . . . . . . . Salvage Created 24073 | 136 500 89 943 . . 11 1905 367 197 135 1044 259 649 377 1385 2141 1124 21 97 1016 1076 77 2186 1621 389 215 766 419 1433 2784 229 482 . . Parts 1133 | 11 21 9 60 . . 4 105 30 16 6 53 21 43 11 40 78 59 2 1 85 34 4 97 63 18 14 38 22 26 129 9 24 . . Haulers Intercepted 13 | . 1 . 3 . . . 3 . . 1 . . . . . 3 . . . . . . . . . . 1 . . 1 . . . . Recyclers Shooed 5 | . . . . . . . 2 . . . . . . . . 1 . . . . . . 1 1 . . . . . . . . . . Parts Field Recycled . | . . . . . . . . . . . . . . . . . . . . . . . . . . . . . . . . . . . Retrieved Matter . | . . . . . . . . . . . . . . . . . . . . . . . . . . . . . . . . . . . Parts Self-Destructed 13 | . . . . . . . . . . . . . . . . . . 1 1 4 . 7 . . . . . . . . . . . . Prevented . | . . . . . . . . . . . . . . . . . . . . . . . . . . . . . . . . . . . Kills | -11 -10 -10 -9 -9 -9 -8 -8 -8 -8 -7 -7 -7 -7 -7 -7 -7 -6 -6 -6 -6 -6 -5 -5 -5 -5 -5 -5 -4 -4 -4 -3 -3 -2 -2 ------- Run | Yrd Mat Min Mat Min Exi Min Mat Gar Mat Fac Gar Fac Gar Fac Gar Fac Fac Low Low Zio Dee Pro Fac Ext Cet Arc Hub Fac Was Fac Res Tes Res Qua Combat Hostiles Destroyed 431 | . 8 4 22 . . 4 37 14 7 1 22 1 16 8 25 46 23 3 1 6 56 1 33 21 7 . 9 10 7 31 3 5 . . Melee 1 | . . . . . . . . 1 . . . . . . . . . . . . . . . . . . . . . . . . . . Guns 140 | . 5 . . . . . 24 . . . 13 1 14 6 14 31 17 . . 2 12 . . . . . . . . 1 . . . . Cannons 191 | . . 4 22 . . . 12 13 7 . . . . 2 . 5 6 . . 1 3 1 32 21 7 . 9 10 7 24 3 2 . . AOE 83 | . . . . . . 4 . . . . 8 . 2 . 11 9 . 3 . 3 37 . 1 . . . . . . 2 . 3 . . Classes Destroyed 32 | 2 6 . 1 . . . 4 4 . . 2 . . . . 1 1 . . 3 4 . . . . . . . 1 2 . 1 . . Worker 17 | . 1 . . . . . 5 . . . . 1 . . . 3 1 . . . . . . . . . 1 . . 3 . 2 . . Builder 17 | . . . . . . . 2 . . . . 2 . . . 3 . . . . . . 5 1 . . . . . 2 . 2 . . Tunneler 5 | 3 . . . . . . . . 1 . . . . . . 1 . . . . . . . . . . . . . . . . . . Hauler 13 | . 1 . 3 . . . 3 . . 1 . . . . . 3 . . . . . . . . . . 1 . . 1 . . . . Recycler 16 | 1 1 . . . . . 3 . . . . 1 . 1 . 2 1 . . . . . 2 1 . . . . . 1 . 2 . . Mechanic 4 | . 1 . . . . . . . . . . . . . . 2 . . . . . . . . . . . . . 1 . . . . Operator 8 | . . . . . . . . . . . . . . . . . 1 . . . . . . . . 6 1 . . . . . . . Drone 1 | . . . . . . . . . . . 1 . . . . . . . . . . . . . . . . . . . . . . . Watcher 18 | . 2 . 4 . . . 2 . 1 . . 1 . . . 2 . . . . . . 1 1 . . 2 . . 2 . . . . Swarmer 81 | . 3 1 3 . . 4 9 . 2 . . . 8 . 19 4 7 3 . . . . 9 . 2 . . 7 . . . . . . Cutter 5 | . . . . . . . . 3 . . 2 . . . . . . . . . . . . . . . . . . . . . . . Saboteur 1 | . . . . . . . . . . . . . . . . . . . . . . . . . . . . . . 1 . . . . Grunt 127 | . 5 3 14 . . . 16 1 2 . 11 . 5 4 2 20 7 . . . . . 12 8 . . 2 . . 10 3 2 . . Brawler 8 | . . . . . . . . . . . 2 . . . . 3 . . . . . . . . . . . 1 . 2 . . . . Duelist 11 | . . . . . . . . 2 . . . . . . . 7 . . . . . . . . . . 1 1 . . . . . . Protector 2 | . . . . . . . . . . . . . . . . 2 . . . . . . . . . . . . . . . . . . Researcher 1 | . . . . . . . . . . . . . . . . . . . . . . . . . . . . . . . . 1 . . Sentry 58 | . . . 5 . . . 8 4 3 1 2 1 2 2 3 4 3 . . . . 1 4 8 . . 1 . . 6 . . . . Specialist 5 | . . . . . . . 2 . . . . . . . . . . . . . . . 2 . . . . . . 1 . . . . Hunter 17 | . . . . . . . 1 2 . . 1 . . 1 . 2 4 . . . . . . 3 . . . . . 2 . 1 . . Programmer 29 | . . . . . . . . 1 . . 3 . 1 1 1 4 2 . . . . . 6 . . . 2 . . 6 . 2 . . Heavy 1 | . . . . . . . 1 . . . . . . . . . . . . . . . . . . . . . . . . . . . Behemoth 7 | . . . . . . . . 1 . . . . . . . . . . 1 . . . . 2 . . 1 1 . 1 . . . . Compactor 6 | . . . . . . . . . . . . . . . . . . . . . . . . . . . . . 6 . . . . . Cetus Guard 5 | . . . . . . . . . . . . . . . . . . . . . . . . . 5 . . . . . . . . . Lightning 2 | . . . . . . . . . . . . . . . . . . . . . . . . . . . 2 . . . . . . . Striker 2 | . . . . . . . . . . . . . . . . . . . . . . . . . . . . . . 2 . . . . Zionite 38 | . . . . . . . . . . . . . . . . . . . . 38 . . . . . . . . . . . . . . Z-Light 5 | . . . . . . . . . . . . . . . . . . . . . 5 . . . . . . . . . . . . . Decomposer 1 | . . . . . . . . . . . . . . . . . . . 1 . . . . . . . . . . . . . . . Tinkerer 5 | . . . . . . . . . . . . . . . . . . . . 5 . . . . . . . . . . . . . . Assembler 2 | . . . . . . . . . . . . . . . . . . . . . 2 . . . . . . . . . . . . . Assembled 47 | . . . . . . . . . . . . . . . . . . . . . 47 . . . . . . . . . . . . . Golem 5 | . . . . . . . . . . . . . . . . . . . . . 4 . . . . . . . 1 . . . . . Mutant 5 | . . . . . . . . . . . . . . . . . . . . 5 . . . . . . . . . . . . . . Best Kill Streak 32 | 3 5 2 3 . . 4 5 2 5 1 6 3 6 2 11 15 6 3 1 10 32 1 8 4 3 3 3 5 2 13 2 8 . . Combat Bots Only 32 | . 2 2 3 . . 4 5 2 5 1 6 1 6 2 11 8 6 3 1 4 32 1 7 3 3 . 2 5 2 8 2 3 . . Max Kills in Single Turn 15 | 1 1 1 2 . . 2 2 1 2 1 2 1 3 1 6 5 2 3 1 3 15 1 3 1 2 1 2 1 1 3 1 2 . . Gunslinging 1 | . . . . . . . 1 . . . . . 1 . 1 1 . . . . . . . . . . . . . . . . . . Exploded 15 | . . . . . . 2 . . . . 2 . 1 . 6 3 . 3 . 3 15 . 1 . . . . . . 1 . 1 . . Melee 1 | . . . . . . . . 1 . . . . . . . . . . . . . . . . . . . . . . . . . . Uniques/NPCs Destroyed 1 | . . . . . . . . . . . . . . . . . . . . 1 . . . . . . . . . . . . . . Imprinter (-6/Zion) Combat | -11 -10 -10 -9 -9 -9 -8 -8 -8 -8 -7 -7 -7 -7 -7 -7 -7 -6 -6 -6 -6 -6 -5 -5 -5 -5 -5 -5 -4 -4 -4 -3 -3 -2 -2 -------- Run | Yrd Mat Min Mat Min Exi Min Mat Gar Mat Fac Gar Fac Gar Fac Gar Fac Fac Low Low Zio Dee Pro Fac Ext Cet Arc Hub Fac Was Fac Res Tes Res Qua Hostile Shots Fired 3365 | . 50 12 79 . . 3 164 129 17 18 159 6 88 88 147 293 230 3 54 69 143 4 197 93 19 . 26 18 43 576 32 373 136 96 Missed 1059 | . 17 3 22 . . 1 30 29 6 9 58 2 21 24 39 100 70 1 13 23 43 2 54 28 6 . 3 10 . 213 8 140 57 27 Damage Taken 38148 | . 354 107 464 . . 39 2202 1759 165 50 946 80 612 725 1466 2659 2283 33 721 824 2590 42 2254 937 270 . 590 134 1808 6476 438 4217 1704 1199 Core 5882 | . 96 16 39 . . . 278 228 39 6 80 . 44 74 110 251 204 . 52 116 384 21 188 160 22 . 52 13 207 755 80 899 467 1001 Absorbed by Shields 2289 | . . . 168 . . . . 43 . 20 204 . 281 100 . 204 16 . . 296 290 . 64 113 43 . . . . 447 . . . . Reduced by Siege Mode 172 | . . . . . . . . . . . . . . . . 21 5 . 24 . 39 . . . . . 9 . . 74 . . . . Redirected to Shielding 506 | . . . . . . . . . . . . . . . . . . . . . 506 . . . . . . . . . . . . . Ignored by Resistances 1688 | . . . . . . . . . . . . . . . . . . . . . . 8 420 214 65 . 113 29 131 265 80 363 . . Regen/Repaired (Parts) 1623 | . 130 . 89 . . . 17 . . . . . . . . . 957 . . . . . . 47 . . . 383 . . . . . . Core Remaining (%) 40 | 100 . 55 . . . 90 . . . . . . . . . 19 . . . . . 8 . . . . 57 . . 15 . 24 . . Volleys Fired 1178 | 6 47 8 59 . . 4 106 45 15 3 49 7 25 26 66 101 44 1 15 97 74 2 90 46 12 13 23 15 33 82 13 40 6 5 Largest 3 | 2 2 2 3 . . 1 3 3 3 3 3 3 3 3 3 3 3 2 3 3 3 3 3 3 3 3 3 3 3 3 2 3 1 1 Hottest 245 | 100 100 70 204 . . 33 201 149 140 150 150 150 180 240 240 240 224 125 245 182 195 75 75 75 75 75 75 75 75 75 113 94 113 65 Shots Fired 2824 | 12 94 16 175 . . 4 315 111 44 9 103 21 55 77 159 267 127 2 38 185 119 6 219 130 33 41 71 43 93 160 16 68 6 5 Gun 1242 | 12 94 . 4 . . . 221 . . 9 89 21 52 69 157 215 109 . 12 88 74 . . . . . . . . 9 . 2 . 5 Cannon 1492 | . . 16 171 . . . 94 108 44 . . . . 7 . 46 18 1 26 68 34 6 219 130 33 41 71 42 93 146 16 56 6 . Launcher 89 | . . . . . . 4 . 3 . . 14 . 3 1 2 6 . 1 . 29 11 . . . . . . . . 5 . 10 . . Special 1 | . . . . . . . . . . . . . . . . . . . . . . . . . . . . 1 . . . . . . Kinetic 586 | . . 16 93 . . . 135 108 44 . . . . 57 15 17 . . . 74 18 . . . . . . . . 9 . . . . Thermal 1919 | 12 94 . 82 . . . 180 . . . . . 5 19 142 244 127 1 38 82 27 6 219 130 33 41 71 42 93 146 16 58 6 5 Explosive 84 | . . . . . . 4 . 3 . . 14 . 3 1 2 6 . 1 . 29 11 . . . . . . . . . . 10 . . Electromagnetic 191 | . . . . . . . . . . 9 89 21 47 . . . . . . . 20 . . . . . . . . 5 . . . . Phasic 43 | . . . . . . . . . . . . . . . . . . . . . 43 . . . . . . . . . . . . . Robot Hit Streak 52 | 3 6 9 10 . . . 16 10 7 12 17 10 26 46 52 22 17 1 14 10 19 10 25 29 11 27 12 18 23 15 3 37 2 4 Robot Miss Streak 6 | 2 3 2 5 . . . 4 5 3 2 3 2 2 4 4 6 4 5 4 3 4 . 2 2 1 2 3 1 2 2 4 2 . 2 Penetration Max 1 | . . . . . . . . . . . . . . . . . . . . 1 1 . . . . . . . . 1 . . . . Secondary Targets 18 | . . . . . . . 3 . . . 2 . 4 . 3 3 1 . . . 2 . . . . . . . . . . . . . Max Gunslinging Chain 1 | . . . . . . . 1 . . . 1 . 1 . 1 1 1 . . . 1 . . . . . . . . . . . . . Autonomous 6 | . . . . . . . . . . . . . . . 6 . . . . . . . . . . . . . . . . . . . Shots Hit Robots 1851 | 7 61 10 93 . . . 220 57 25 8 65 14 32 53 115 199 95 1 26 89 71 6 146 86 22 27 44 30 75 113 8 49 1 3 Core Hits 1287 | 5 19 5 34 . . 4 140 26 10 5 59 10 40 32 118 229 80 6 3 74 101 2 51 40 12 9 22 14 18 75 4 38 1 1 Critical Kills 2 | . . . . . . . 1 . . . . . . . . . . . . 1 . . . . . . . . . . . . . . Critical Parts Destroyed 1 | . . . . . . . . . . . . . . . . . . . . 1 . . . . . . . . . . . . . . Critical Strikes 35 | 1 4 . 3 . . . 4 8 2 . . . . 1 . 2 6 . . 3 1 . . . . . . . . . . . . . Burn 15 | 1 4 . . . . . 1 . . . . . . . . 2 6 . . 1 . . . . . . . . . . . . . . Meltdown 1 | . . . . . . . . . . . . . . . . . . . . 1 . . . . . . . . . . . . . . Destroy 2 | . . . . . . . 1 . . . . . . . . . . . . 1 . . . . . . . . . . . . . . Blast 15 | . . . 3 . . . 2 7 2 . . . . 1 . . . . . . . . . . . . . . . . . . . . Sever 1 | . . . . . . . . 1 . . . . . . . . . . . . . . . . . . . . . . . . . . Intensify 1 | . . . . . . . . . . . . . . . . . . . . . 1 . . . . . . . . . . . . . Melee Attacks 6 | . . . . . . . . 5 . . . . . . . . . . . . 1 . . . . . . . . . . . . . Impact . | . . . . . . . . . . . . . . . . . . . . . . . . . . . . . . . . . . . Slashing 6 | . . . . . . . . 5 . . . . . . . . . . . . 1 . . . . . . . . . . . . . Piercing . | . . . . . . . . . . . . . . . . . . . . . . . . . . . . . . . . . . . Sneak Attacks . | . . . . . . . . . . . . . . . . . . . . . . . . . . . . . . . . . . . Combat Hostiles . | . . . . . . . . . . . . . . . . . . . . . . . . . . . . . . . . . . . Follow-up Attacks . | . . . . . . . . . . . . . . . . . . . . . . . . . . . . . . . . . . . Damage Inflicted 69361 | 89 771 157 1754 . . 264 4136 1639 718 161 2098 260 1322 1227 3803 6931 2393 286 711 3440 4659 236 7242 4332 1259 1231 2255 1185 3572 6968 440 3664 45 113 Guns 19002 | 89 771 . 66 . . . 2837 . . 161 1198 260 707 1136 3034 3966 1993 . 182 1054 1217 . . . . . . . . 221 . 22 . 88 Cannons 37408 | . . 157 1688 . . . 1285 1412 718 . . . . 91 . 728 400 . 529 1206 692 236 7097 4332 1259 1231 2255 1185 3572 5078 440 1776 41 . Explosions 12803 | . . . . . . 264 . 166 . . 900 . 607 . 769 2237 . 286 . 1180 2750 . 145 . . . . . . 1633 . 1866 . . Melee 58 | . . . . . . . . 58 . . . . . . . . . . . . . . . . . . . . . . . . . . Ramming 90 | . . . . . . . 14 3 . . . . 8 . . . . . . . . . . . . . . . . 36 . . 4 25 Kinetic 7210 | . . 157 928 . . . 1716 1412 718 . . . . 777 28 154 . . . 840 259 . . . . . . . . 221 . . . . Thermal 46579 | 89 771 . 826 . . . 2406 . . . 276 . 164 450 3006 4572 2393 . 711 1420 564 236 7242 4332 1259 1231 2255 1185 3572 5252 440 1798 41 88 Explosive 10563 | . . . . . . 264 . 166 . . 624 . 563 . 769 2205 . 286 . 1180 2640 . . . . . . . . . . 1866 . . Electromagnetic 4135 | . . . . . . . . . . 161 1198 260 587 . . . . . . . 470 . . . . . . . . 1459 . . . . Impact . | . . . . . . . . . . . . . . . . . . . . . . . . . . . . . . . . . . . Slashing 58 | . . . . . . . . 58 . . . . . . . . . . . . . . . . . . . . . . . . . . Piercing . | . . . . . . . . . . . . . . . . . . . . . . . . . . . . . . . . . . . Phasic 726 | . . . . . . . . . . . . . . . . . . . . . 726 . . . . . . . . . . . . . Highest Corruption 79 | . . . . . . . . 1 1 . 1 1 3 11 11 19 2 2 2 2 2 2 2 2 5 11 16 . 29 79 . 15 . 2 Average Corruption 6 | . . . . . . . . 1 1 . 1 1 1 4 11 13 1 2 2 1 2 2 1 2 4 5 11 . 20 41 . 12 . 1 Corruption Purged . | . . . . . . . . . . . . . . . . . . . . . . . . . . . . . . . . . . . Corruption Blocked . | . . . . . . . . . . . . . . . . . . . . . . . . . . . . . . . . . . . Effects 671 | . . . . . . . . 12 7 . 2 5 7 15 50 123 17 8 11 20 62 9 13 50 23 27 35 . 30 123 . 20 . 2 Message Errors 150 | . . . . . . . . 3 1 . 1 1 1 5 7 21 7 2 2 6 15 . 4 14 9 10 8 . 11 19 . 3 . . Matter Fused 151 | . . . . . . . . 2 2 . . 2 2 1 14 29 4 1 . 4 18 4 5 12 4 6 13 . 6 19 . 3 . . Heat Flow Errors 75 | . . . . . . . . 1 . . 1 . 1 4 3 12 2 2 2 2 8 1 . 3 3 4 3 . 3 16 . 4 . . Energy Discharges 87 | . . . . . . . . 3 1 . . 1 1 1 10 19 2 1 2 4 6 1 2 8 1 1 3 . 4 13 . 2 . 1 Parts Rejected 10 | . . . . . . . . . . . . . . . 2 5 . . . . . 1 . . . . . . 1 1 . . . . Parts Fused 7 | . . . . . . . . . . . . . . 1 . . . . . . 1 . . . . 1 . . . 3 . 1 . . Data Loss (minor) 67 | . . . . . . . . 1 2 . . 1 2 . 8 9 . 2 2 3 8 1 1 7 4 2 3 . 1 7 . 2 . 1 Data Loss (major) 26 | . . . . . . . . 1 . . . . . 1 3 5 . . 1 1 3 1 . 1 1 1 . . . 6 . 1 . . Misfires 32 | . . . . . . . . . 1 . . . . 1 2 6 1 . . . . . 1 3 . 2 3 . 2 10 . . . . Alerts 11 | . . . . . . . . 1 . . . . . 1 . 1 1 . . . . . . 1 . . 1 . 1 3 . 1 . . Misdirections 10 | . . . . . . . . . . . . . . . . 1 . . . . . . . . . . . . . 8 . 1 . . Weapon Failures 45 | . . . . . . . . . . . . . . . 1 15 . . 2 . 3 . . 1 1 . 1 . 1 18 . 2 . . Overload Shots . | . . . . . . . . . . . . . . . . . . . . . . . . . . . . . . . . . . . Overflow Damage 1413 | . . . 42 . . 1 30 8 7 . 1 . . . 5 26 . 15 1 33 146 . 421 106 56 113 129 1 . 197 . 75 . . Projectiles 1068 | . . . 42 . . . 30 8 7 . . . . . . 20 . . 1 16 28 . 348 106 56 113 129 1 . 152 . 11 . . Explosions 345 | . . . . . . 1 . . . . 1 . . . 5 6 . 15 . 17 118 . 73 . . . . . . 45 . 64 . . Melee . | . . . . . . . . . . . . . . . . . . . . . . . . . . . . . . . . . . . Knockbacks 33 | . . 3 13 . . . 2 10 5 . . . . . . . . . . . . . . . . . . . . . . . . . Impact . | . . . . . . . . . . . . . . . . . . . . . . . . . . . . . . . . . . . Kinetic 32 | . . 3 12 . . . 2 10 5 . . . . . . . . . . . . . . . . . . . . . . . . . Secondary 1 | . . . 1 . . . . . . . . . . . . . . . . . . . . . . . . . . . . . . . Self-Inflicted Damage 991 | . . . . . . 20 4 . . . 61 . 4 . 25 258 . . . 168 129 . 83 . . . . . . 226 . . 1 12 Shots 30 | . . . . . . 1 . . . . 2 . . . 2 7 . . . 8 3 . 1 . . . . . . 6 . . . . Rammed 18 | . . . . . . . 2 3 . . . . 1 . . . . . . . . . . . . . . . . 8 . . 2 2 Targets Rammed 18 | . . . . . . . 2 3 . . . . 1 . . . . . . . . . . . . . . . . 8 . . 2 2 Kicked . | . . . . . . . . . . . . . . . . . . . . . . . . . . . . . . . . . . . Crushed . | . . . . . . . . . . . . . . . . . . . . . . . . . . . . . . . . . . . Highest Temperature 426 | 81 246 90 297 . . . 345 377 12 166 315 198 266 319 320 426 378 98 260 292 201 176 25 84 191 152 250 276 219 240 51 220 44 . Average Temperature 92 | 37 125 31 107 . . . 98 143 6 73 98 67 76 73 81 112 102 47 135 40 65 57 9 50 89 72 92 166 73 73 19 92 18 . Received Heat Transfer 6304 | . 120 54 185 . . . 720 137 72 16 298 6 132 232 321 608 376 . 84 91 225 9 580 220 9 . 120 309 . 780 42 342 216 . Effects 17 | . . . . . . . 2 3 . . 1 . . . 3 5 1 . . . . . . . . . 2 . . . . . . . Shutdowns 2 | . . . . . . . . . . . . . . . 1 1 . . . . . . . . . . . . . . . . . . Energy Bleed 6 | . . . . . . . . . . . 1 . . . 2 2 1 . . . . . . . . . . . . . . . . . Interference 8 | . . . . . . . 2 2 . . . . . . . 2 . . . . . . . . . . 2 . . . . . . . Short Circuit 1 | . . . . . . . . 1 . . . . . . . . . . . . . . . . . . . . . . . . . . Siege Activations 13 | . . . . . . . . . . . . . . . . 2 3 . 1 . 2 . . . . . 1 2 1 1 . . . . Total Turns 318 | . . . . . . . . . . . . . . . . 31 58 . 11 . 25 . . . . . 12 74 23 84 . . . . Longest Duration 84 | . . . . . . . . . . . . . . . . 21 30 . 11 . 19 . . . . . 12 69 23 84 . . . . Robots Corrupted 10 | . . . . . . . . . . 1 1 . . . . . . . . . 4 . . . . . . . . 4 . . . . Combat Hostiles 10 | . . . . . . . . . . 1 1 . . . . . . . . . 4 . . . . . . . . 4 . . . . Parts Fried 20 | . . . . . . . . . . 1 4 3 1 . . . . . . . . . . . . . . . . 11 . . . . Impact Corruptions . | . . . . . . . . . . . . . . . . . . . . . . . . . . . . . . . . . . . Robots Melted 15 | . 3 . . . . . 1 . . . . . . . 6 2 . . 1 2 . . . . . . . . . . . . . . Combat Hostiles 6 | . 3 . . . . . 1 . . . . . . . . 1 . . 1 . . . . . . . . . . . . . . . Parts Melted 108 | 1 9 . 5 . . . 7 . . . 1 . 1 4 19 22 19 . 1 6 . . 4 5 . . . . . 2 . 2 . . Heat Transferred 48950 | 333 2590 . 1454 . . . 4111 . . . 250 . 275 1000 6111 8502 4561 . 1196 2271 696 150 4000 2325 675 700 1056 725 2025 2649 274 873 37 111 Parts Sabotaged . | . . . . . . . . . . . . . . . . . . . . . . . . . . . . . . . . . . . Parts Stolen 2 | . . . . . . . . . . . . . . . . . . . 2 . . . . . . . . . . . . . . . Parts Stripped . | . . . . . . . . . . . . . . . . . . . . . . . . . . . . . . . . . . . Power Chain Reactions 8 | . . . . . . . . . . . 4 . 1 . . . . . . . 1 . . . . . . . . 2 . . . . Alert | -11 -10 -10 -9 -9 -9 -8 -8 -8 -8 -7 -7 -7 -7 -7 -7 -7 -6 -6 -6 -6 -6 -5 -5 -5 -5 -5 -5 -4 -4 -4 -3 -3 -2 -2 ------- Run | Yrd Mat Min Mat Min Exi Min Mat Gar Mat Fac Gar Fac Gar Fac Gar Fac Fac Low Low Zio Dee Pro Fac Ext Cet Arc Hub Fac Was Fac Res Tes Res Qua Peak Influence 1390 | 20 164 80 308 53 . 133 629 1219 624 285 1035 558 767 492 1261 1390 749 . . . . . 964 501 543 391 920 643 235 846 444 434 355 239 Initial 681 | . 13 . 11 53 . . 51 410 594 233 209 543 272 402 307 661 681 . . . . . . 451 266 157 34 378 225 1 444 202 173 199 Average 371 | 8 35 42 168 51 . 72 283 824 510 244 609 465 569 403 862 790 454 . . . . . 242 135 319 258 385 377 115 243 384 311 215 215 Maximum Alert Level 4 | . . . 1 . . . 2 4 2 1 3 2 3 2 4 4 3 . . . . . 3 2 2 1 3 2 1 3 2 2 1 1 Low Security (%) 35 | 100 100 100 75 100 . 100 36 . . . . . . . . . . . . . . . 66 73 15 32 9 2 69 47 . . 63 . Level 1 24 | . . . 24 . . . 31 . 4 100 24 47 16 23 14 . 49 . . . . . . 9 79 67 53 79 30 31 49 82 36 99 Level 2 24 | . . . . . . . 31 35 95 . 28 52 59 76 6 34 37 . . . . . 23 16 4 . 24 18 . 16 50 17 . . Level 3 13 | . . . . . . . . 50 . . 46 . 23 . 52 57 13 . . . . . 9 . . . 12 . . 3 . . . . Level 4 2 | . . . . . . . . 14 . . . . . . 26 8 . . . . . . . . . . . . . . . . . . Level 5 . | . . . . . . . . . . . . . . . . . . . . . . . . . . . . . . . . . . . High Security . | . . . . . . . . . . . . . . . . . . . . . . . . . . . . . . . . . . . Max Security . | . . . . . . . . . . . . . . . . . . . . . . . . . . . . . . . . . . . Squads Dispatched 84 | . . 1 6 . . . 7 . 1 1 . 2 . 6 . 18 4 . . . . . 10 3 . . 6 3 . 7 5 2 . 2 Investigation 13 | . . 1 2 . . . . . . 1 . . . 1 . 1 . . . . . . . 2 . . 3 . . . 2 . . . Extermination 18 | . . . . . . . . . . . . 1 . 2 . 4 3 . . . . . 3 . . . 1 1 . 3 . . . . Reinforcement 32 | . . . 4 . . . 6 . 1 . . 1 . 1 . 4 1 . . . . . 3 1 . . . . . 3 3 2 . 2 Assault 7 | . . . . . . . . . . . . . . . . 3 . . . . . . 1 . . . 2 . . 1 . . . . Garrison 14 | . . . . . . . 1 . . . . . . 2 . 6 . . . . . . 3 . . . . 2 . . . . . . Intercept . | . . . . . . . . . . . . . . . . . . . . . . . . . . . . . . . . . . . Searches Triggered . | . . . . . . . . . . . . . . . . . . . . . . . . . . . . . . . . . . . Construction Impeded 4 | . . . . . . . 1 . . . . . . . . 2 . . . . . . . . . . . . . 1 . . . . Haulers Reinforced 2 | . . . . . . . . . . . . . . . . 1 . . . . . . . . . . . . . . 1 . . . Active Scanning Responses . | . . . . . . . . . . . . . . . . . . . . . . . . . . . . . . . . . . . Cargo Convoy Interrupts 2 | . . . . . . . . . . . . . . . . . . . . . . . 1 . . . . . . 1 . . . . Stealth | -11 -10 -10 -9 -9 -9 -8 -8 -8 -8 -7 -7 -7 -7 -7 -7 -7 -6 -6 -6 -6 -6 -5 -5 -5 -5 -5 -5 -4 -4 -4 -3 -3 -2 -2 --------- Run | Yrd Mat Min Mat Min Exi Min Mat Gar Mat Fac Gar Fac Gar Fac Gar Fac Fac Low Low Zio Dee Pro Fac Ext Cet Arc Hub Fac Was Fac Res Tes Res Qua Distress Signals 41 | . 2 . 6 . . . 7 . 2 . . 1 . 1 . 2 . . . . . . . 2 2 . 1 1 . 4 8 2 . . Communications Jammed . | . . . . . . . . . . . . . . . . . . . . . . . . . . . . . . . . . . . Distress Signals . | . . . . . . . . . . . . . . . . . . . . . . . . . . . . . . . . . . . Times Spotted 714 | . 17 4 35 . . 2 54 15 8 1 25 2 17 12 24 71 30 3 4 46 65 1 42 35 16 10 24 11 9 70 12 24 18 7 Peak Tracking Total 37 | . 4 2 5 . . 2 7 3 2 1 6 1 6 4 10 6 6 3 2 8 37 1 5 5 5 1 8 5 5 22 4 8 8 5 Tactical Retreats 50 | . 2 . 1 . . . 5 . . . 1 . 1 2 1 3 1 . . 1 7 . 2 3 . . 2 . 2 6 . 5 4 1 Traps | -11 -10 -10 -9 -9 -9 -8 -8 -8 -8 -7 -7 -7 -7 -7 -7 -7 -6 -6 -6 -6 -6 -5 -5 -5 -5 -5 -5 -4 -4 -4 -3 -3 -2 -2 ------- Run | Yrd Mat Min Mat Min Exi Min Mat Gar Mat Fac Gar Fac Gar Fac Gar Fac Fac Low Low Zio Dee Pro Fac Ext Cet Arc Hub Fac Was Fac Res Tes Res Qua Traps Triggered 31 | . 2 . 1 . . . . 4 . . 6 1 3 2 . 6 . . . . . . . 3 . . . 1 . 1 . . . 1 Indirectly . | . . . . . . . . . . . . . . . . . . . . . . . . . . . . . . . . . . . Trap Hack Attempts . | . . . . . . . . . . . . . . . . . . . . . . . . . . . . . . . . . . . Triggered . | . . . . . . . . . . . . . . . . . . . . . . . . . . . . . . . . . . . Disarmed . | . . . . . . . . . . . . . . . . . . . . . . . . . . . . . . . . . . . Reprogrammed . | . . . . . . . . . . . . . . . . . . . . . . . . . . . . . . . . . . . Reused . | . . . . . . . . . . . . . . . . . . . . . . . . . . . . . . . . . . . Traps Extracted . | . . . . . . . . . . . . . . . . . . . . . . . . . . . . . . . . . . . Installed . | . . . . . . . . . . . . . . . . . . . . . . . . . . . . . . . . . . . Triggered 1 | . . . . . . . . . . . . . . . . . . . . . . . 1 . . . . . . . . . . . Machines | -11 -10 -10 -9 -9 -9 -8 -8 -8 -8 -7 -7 -7 -7 -7 -7 -7 -6 -6 -6 -6 -6 -5 -5 -5 -5 -5 -5 -4 -4 -4 -3 -3 -2 -2 ---------- Run | Yrd Mat Min Mat Min Exi Min Mat Gar Mat Fac Gar Fac Gar Fac Gar Fac Fac Low Low Zio Dee Pro Fac Ext Cet Arc Hub Fac Was Fac Res Tes Res Qua Machines Disabled 57 | . 1 . . . . . 1 4 2 . 3 . 3 . 4 5 1 . . 3 3 . 7 3 . 4 3 . . 5 2 2 . 1 Max in Single Turn 3 | . 1 . . . . . 1 1 1 . 1 . 1 . 1 3 1 . . 1 1 . 2 1 . 1 1 . . 3 1 1 . 1 Garrison Access 5 | . . . . . . . . . 1 . . . . . . . . . . . . . . . . . 2 . . 1 . . 1 . Garrison Relay 9 | . . . . . . . . 1 . . 2 . 2 . 4 . . . . . . . . . . . . . . . . . . . Network Hub 2 | . . . . . . . . . . . . . . . . . . . . . . . . . . . 2 . . . . . . . Machines Repaired . | . . . . . . . . . . . . . . . . . . . . . . . . . . . . . . . . . . . Machines Dismantled . | . . . . . . . . . . . . . . . . . . . . . . . . . . . . . . . . . . . Machines Sabotaged 1 | . . . . . . . . . . . . . . . . . . . . . . . . . . . 1 . . . . . . . Overloaded Fab Kills . | . . . . . . . . . . . . . . . . . . . . . . . . . . . . . . . . . . . Hacking | -11 -10 -10 -9 -9 -9 -8 -8 -8 -8 -7 -7 -7 -7 -7 -7 -7 -6 -6 -6 -6 -6 -5 -5 -5 -5 -5 -5 -4 -4 -4 -3 -3 -2 -2 --------- Run | Yrd Mat Min Mat Min Exi Min Mat Gar Mat Fac Gar Fac Gar Fac Gar Fac Fac Low Low Zio Dee Pro Fac Ext Cet Arc Hub Fac Was Fac Res Tes Res Qua Machines Accessed 95 | . 7 2 7 . 2 . 9 1 1 3 2 2 . 2 3 10 8 . . . . . 5 11 3 1 7 2 . 4 . 1 1 1 Terminals 63 | . 4 . 4 . . . 6 1 . 2 2 . . 1 3 7 6 . . . . . 4 10 3 . 6 . . 2 . 1 . 1 Fabricators 1 | . . . . . . . . . . . . . . . . 1 . . . . . . . . . . . . . . . . . . Repair Stations 9 | . 1 . 1 . . . 1 . . . . . . . . 1 2 . . . . . 1 1 . . . 1 . . . . . . Recycling Units 5 | . 2 . 1 . . . . . . . . 1 . . . . . . . . . . . . . . . 1 . . . . . . Scanalyzers 2 | . . . 1 . . . 1 . . . . . . . . . . . . . . . . . . . . . . . . . . . Garrison Access 10 | . . . . . . . 1 . 1 1 . 1 . 1 . 1 . . . . . . . . . . 1 . . 2 . . 1 . Total Hacks 253 | . 23 2 22 . 2 . 26 2 1 5 4 3 . 3 6 18 24 . . . . . 10 26 7 25 17 5 . 17 . 2 1 2 Successful 110 | . 13 2 10 . 2 . 9 . 1 1 1 1 . 2 1 4 10 . . . . . 3 12 1 25 7 3 . 1 . . 1 . Failed 143 | . 10 . 12 . . . 17 2 . 4 3 2 . 1 5 14 14 . . . . . 7 14 6 . 10 2 . 16 . 2 . 2 Catastrophic 38 | . 1 . 1 . . . 4 . . 1 . 2 . . 1 7 1 . . . . . 2 6 3 . . . . 8 . . . 1 Database Lockouts . | . . . . . . . . . . . . . . . . . . . . . . . . . . . . . . . . . . . Manual 87 | . 9 . 5 . 1 . 15 . . 3 1 . . 1 1 9 6 . . 6 . . 4 7 1 . 9 . . 6 . 1 . 2 Terminals 156 | . 15 . 10 . . . 19 2 . 2 4 . . 2 6 13 16 . . . . . 9 24 7 . 14 . . 9 . 2 . 2 Fabricators 1 | . . . . . . . . . . . . . . . . 1 . . . . . . . . . . . . . . . . . . Repair Stations 28 | . 5 . 5 . . . 3 . . . . . . . . 2 8 . . . . . 1 2 . . . 2 . . . . . . Recycling Units 9 | . 3 . 1 . . . . . . . . 2 . . . . . . . . . . . . . . . 3 . . . . . . Scanalyzers 8 | . . . 6 . . . 2 . . . . . . . . . . . . . . . . . . . . . . . . . . . Garrison Access 22 | . . . . . . . 2 . 1 3 . 1 . 1 . 2 . . . . . . . . . . 3 . . 8 . . 1 . Terminal Hacks 60 | . 5 2 2 . 2 . 2 . . . 1 . . . 1 2 3 . . . . . 2 9 1 25 3 . . . . . . . Record 27 | . . . . . 1 . . . . . . . . . . . . . . . . . . . 1 25 . . . . . . . . Part Schematic 1 | . 1 . . . . . . . . . . . . . . . . . . . . . . . . . . . . . . . . . Prototype ID Bank 3 | . 2 . . . . . . . . . . . . . . . . . . . . . . 1 . . . . . . . . . . Open Door 6 | . . 2 . . . . . . . . . . . . . . . . . . . . . 4 . . . . . . . . . . Level Access Points 2 | . . . 1 . . . . . . . . . . . . . . . . . . . . . . . 1 . . . . . . . Branch Access Points 3 | . . . . . . . 1 . . . . . . . . . 1 . . . . . 1 . . . . . . . . . . . Emergency Access Points 2 | . . . . . . . . . . . 1 . . . 1 . . . . . . . . . . . . . . . . . . . Terminal Index 1 | . . . . . . . . . . . . . . . . . . . . . . . 1 . . . . . . . . . . . Alert Level 1 | . . . . . . . . . . . . . . . . . . . . . . . . 1 . . . . . . . . . . Unreport Threat 7 | . 1 . . . . . 1 . . . . . . . . 1 2 . . . . . . 2 . . . . . . . . . . Locate Traps 1 | . . . 1 . . . . . . . . . . . . . . . . . . . . . . . . . . . . . . . Recall Investigation 1 | . . . . . . . . . . . . . . . . 1 . . . . . . . . . . . . . . . . . . Recall Assault 1 | . . . . . . . . . . . . . . . . . . . . . . . . . . . 1 . . . . . . . Hauler Manifests 1 | . 1 . . . . . . . . . . . . . . . . . . . . . . . . . . . . . . . . . Registered Components 1 | . . . . . . . . . . . . . . . . . . . . . . . . . . . 1 . . . . . . . Zone Layout 1 | . . . . . . . . . . . . . . . . . . . . . . . . 1 . . . . . . . . . . Derelict Proto ID Bank 1 | . . . . . 1 . . . . . . . . . . . . . . . . . . . . . . . . . . . . . Fabricator Hacks 1 | . . . . . . . . . . . . . . . . 1 . . . . . . . . . . . . . . . . . . Network Status 1 | . . . . . . . . . . . . . . . . 1 . . . . . . . . . . . . . . . . . . Repair Station Hacks 20 | . 4 . 3 . . . 3 . . . . . . . . 1 5 . . . . . . 2 . . . 2 . . . . . . Scan Component 12 | . 2 . 2 . . . 2 . . . . . . . . 1 3 . . . . . . 1 . . . 1 . . . . . . Repair 8 | . 2 . 1 . . . 1 . . . . . . . . . 2 . . . . . . 1 . . . 1 . . . . . . Recycling Unit Hacks 4 | . 2 . 1 . . . . . . . . . . . . . . . . . . . . . . . . 1 . . . . . . Retrieve Components 4 | . 2 . 1 . . . . . . . . . . . . . . . . . . . . . . . . 1 . . . . . . Scanalyzer 4 | . . . 3 . . . 1 . . . . . . . . . . . . . . . . . . . . . . . . . . . Insert Component 2 | . . . 1 . . . 1 . . . . . . . . . . . . . . . . . . . . . . . . . . . Analyze 2 | . . . 2 . . . . . . . . . . . . . . . . . . . . . . . . . . . . . . . Garrison Access Hacks 7 | . . . . . . . 1 . 1 1 . 1 . 1 . . . . . . . . . . . . 1 . . . . . 1 . Unlock Access 4 | . . . . . . . 1 . . 1 . 1 . 1 . . . . . . . . . . . . . . . . . . . . Seal Access 3 | . . . . . . . . . 1 . . . . . . . . . . . . . . . . . 1 . . . . . 1 . Unauthorized Hacks 14 | . 2 . 1 . . . 2 . . . . . . 1 . . 2 . . . . . 1 1 . . 3 . . 1 . . . . Terminals 14 | . 2 . 1 . . . 2 . . . . . . 1 . . 2 . . . . . 1 1 . . 3 . . 1 . . . . Botnet 12 | . 2 . 1 . . . 2 . . . . . . 1 . . 2 . . . . . 1 1 . . 1 . . 1 . . . . Sabotage 2 | . . . . . . . . . . . . . . . . . . . . . . . . . . . 2 . . . . . . . Fabricators . | . . . . . . . . . . . . . . . . . . . . . . . . . . . . . . . . . . . Repair Stations . | . . . . . . . . . . . . . . . . . . . . . . . . . . . . . . . . . . . Recycling Units . | . . . . . . . . . . . . . . . . . . . . . . . . . . . . . . . . . . . Scanalyzers . | . . . . . . . . . . . . . . . . . . . . . . . . . . . . . . . . . . . Garrison Access . | . . . . . . . . . . . . . . . . . . . . . . . . . . . . . . . . . . . Data Cores Recovered 2 | . . . . . . . . . . . . . . . . . 1 . . . . . . . . . 1 . . . . . . . Used . | . . . . . . . . . . . . . . . . . . . . . . . . . . . . . . . . . . . Hacking Detections 74 | . 5 . 6 . . . 8 1 . 3 2 1 . 1 3 10 8 . . . . . 5 7 3 . 6 . . 4 . . . 1 Full Trace Events 8 | . . . 1 . . . 1 1 . 1 1 . . . . 1 . . . . . . . 1 . . 1 . . . . . . . Feedback Events . | . . . . . . . . . . . . . . . . . . . . . . . . . . . . . . . . . . . Feedback Blocked . | . . . . . . . . . . . . . . . . . . . . . . . . . . . . . . . . . . . Robot Schematics Acquired 4 | . . . . . . . . . . . . . . . . . . . . 4 . . . . . . . . . . . . . . Robots Built . | . . . . . . . . . . . . . . . . . . . . . . . . . . . . . . . . . . . Authchips . | . . . . . . . . . . . . . . . . . . . . . . . . . . . . . . . . . . . Time . | . . . . . . . . . . . . . . . . . . . . . . . . . . . . . . . . . . . Total Robot Build Rating . | . . . . . . . . . . . . . . . . . . . . . . . . . . . . . . . . . . . Part Schematics Acquired 15 | . 1 . . . . . . . . . . . . . . . . . . 14 . . . . . . . . . . . . . . Parts Built . | . . . . . . . . . . . . . . . . . . . . . . . . . . . . . . . . . . . Authchips . | . . . . . . . . . . . . . . . . . . . . . . . . . . . . . . . . . . . Time . | . . . . . . . . . . . . . . . . . . . . . . . . . . . . . . . . . . . Total Part Build Rating . | . . . . . . . . . . . . . . . . . . . . . . . . . . . . . . . . . . . Parts Repaired 8 | . 2 . 1 . . . 1 . . . . . . . . . 2 . . . . . . 1 . . . 1 . . . . . . Time 303 | . 52 . 38 . . . 38 . . . . . . . . . 93 . . . . . . 28 . . . 54 . . . . . . Parts Recycled . | . . . . . . . . . . . . . . . . . . . . . . . . . . . . . . . . . . . Recycled Matter . | . . . . . . . . . . . . . . . . . . . . . . . . . . . . . . . . . . . Retrieved Matter . | . . . . . . . . . . . . . . . . . . . . . . . . . . . . . . . . . . . Retrieved Components 15 | . 3 . 10 . . . . . . . . . . . . . . . . . . . . . . . . 2 . . . . . . Parts Scanalyzed 1 | . . . 1 . . . . . . . . . . . . . . . . . . . . . . . . . . . . . . . Part Schematics Acquired . | . . . . . . . . . . . . . . . . . . . . . . . . . . . . . . . . . . . Parts Damaged . | . . . . . . . . . . . . . . . . . . . . . . . . . . . . . . . . . . . Bothacking | -11 -10 -10 -9 -9 -9 -8 -8 -8 -8 -7 -7 -7 -7 -7 -7 -7 -6 -6 -6 -6 -6 -5 -5 -5 -5 -5 -5 -4 -4 -4 -3 -3 -2 -2 ------------ Run | Yrd Mat Min Mat Min Exi Min Mat Gar Mat Fac Gar Fac Gar Fac Gar Fac Fac Low Low Zio Dee Pro Fac Ext Cet Arc Hub Fac Was Fac Res Tes Res Qua Used RIF Installer . | . . . . . . . . . . . . . . . . . . . . . . . . . . . . . . . . . . . Robots Hacked 1 | . . . . . . . . . . . . . . . . . . . . . . . . . . . . 1 . . . . . . Non-combat 1 | . . . . . . . . . . . . . . . . . . . . . . . . . . . . 1 . . . . . . Combat . | . . . . . . . . . . . . . . . . . . . . . . . . . . . . . . . . . . . Robot Hacks Applied 1 | . . . . . . . . . . . . . . . . . . . . . . . . . . . . 1 . . . . . . find_chute 1 | . . . . . . . . . . . . . . . . . . . . . . . . . . . . 1 . . . . . . Relay Couplers Released 52 | . . . . . . . . 8 . . 10 . 9 . 19 . . . . . . . . . . . 2 . . 1 . . 3 . Machine Destruction 49 | . . . . . . . . 5 . . 10 . 9 . 19 . . . . . . . . . . . 2 . . 1 . . 3 . Programmers 3 | . . . . . . . . 3 . . . . . . . . . . . . . . . . . . . . . . . . . . Fabnet Peak Effective % . | . . . . . . . . . . . . . . . . . . . . . . . . . . . . . . . . . . . Robots Rewired 19 | . . . . . . . . . . . 1 . . . . . . . . . . . . 18 . . . . . . . . . . Allies Hacked . | . . . . . . . . . . . . . . . . . . . . . . . . . . . . . . . . . . . Hacks Repelled . | . . . . . . . . . . . . . . . . . . . . . . . . . . . . . . . . . . . Allies | -11 -10 -10 -9 -9 -9 -8 -8 -8 -8 -7 -7 -7 -7 -7 -7 -7 -6 -6 -6 -6 -6 -5 -5 -5 -5 -5 -5 -4 -4 -4 -3 -3 -2 -2 -------- Run | Yrd Mat Min Mat Min Exi Min Mat Gar Mat Fac Gar Fac Gar Fac Gar Fac Fac Low Low Zio Dee Pro Fac Ext Cet Arc Hub Fac Was Fac Res Tes Res Qua Total Allies 34 | . . . . . . . . . . . 2 . . . . . . . . 2 . . . 25 5 . . . . . . . . . Largest Group 13 | . . . . . . . . . . . 1 1 . . . . . . . 2 2 . . 12 13 9 7 2 . . . . . . Highest-Rated Group 802 | . . . . . . . . . . . 28 25 . . . . . . . 192 192 . . 452 802 688 513 145 . . . . . . Highest-Rated Ally 159 | . . . . . . . . . . . 28 25 . . . . . . . 96 96 . . 159 159 153 96 96 . . . . . . Total Orders 12 | . . . . . . . . . 5 . 2 2 . 1 . . . . . . . . . . . . . . . 1 1 . . . EXPLORE 10 | . . . . . . . . . 4 . 1 2 . 1 . . . . . . . . . . . . . . . 1 1 . . . RETURN 2 | . . . . . . . . . 1 . 1 . . . . . . . . . . . . . . . . . . . . . . . Ally Attacks 307 | . . . . . . . . . . . 2 1 . . . . . . . 3 42 . . 112 54 17 63 13 . . . . . . Total Damage 8134 | . . . . . . . . . . . 98 43 . . . . . . . 232 954 . . 1847 1730 619 2202 409 . . . . . . Kills 46 | . . . . . . . . . . . . . . . . . . . . 2 6 . . 11 9 4 11 3 . . . . . . Allies Corrupted 3 | . . . . . . . . . . . . . . . . . . . . . . . . . . . 3 . . . . . . . Allies Melted . | . . . . . . . . . . . . . . . . . . . . . . . . . . . . . . . . . . . Intel | -11 -10 -10 -9 -9 -9 -8 -8 -8 -8 -7 -7 -7 -7 -7 -7 -7 -6 -6 -6 -6 -6 -5 -5 -5 -5 -5 -5 -4 -4 -4 -3 -3 -2 -2 ------- Run | Yrd Mat Min Mat Min Exi Min Mat Gar Mat Fac Gar Fac Gar Fac Gar Fac Fac Low Low Zio Dee Pro Fac Ext Cet Arc Hub Fac Was Fac Res Tes Res Qua Robot Analysis Total . | . . . . . . . . . . . . . . . . . . . . . . . . . . . . . . . . . . . Derelict Logs Recovered 2 | . . 1 . . . . . . . . . . . . . . . . . 1 . . . . . . . . . . . . . . Drone Launches 10 | . . . . . . . . . 4 . 1 2 . 1 . . . . . . . . . . . . . . . 1 1 . . . Drone Recoveries 4 | . . . . . . . . . 1 . 1 . . . . . . . . . . . . . . . . . . 1 1 . . . Exploration | -11 -10 -10 -9 -9 -9 -8 -8 -8 -8 -7 -7 -7 -7 -7 -7 -7 -6 -6 -6 -6 -6 -5 -5 -5 -5 -5 -5 -4 -4 -4 -3 -3 -2 -2 ------------- Run | Yrd Mat Min Mat Min Exi Min Mat Gar Mat Fac Gar Fac Gar Fac Gar Fac Fac Low Low Zio Dee Pro Fac Ext Cet Arc Hub Fac Was Fac Res Tes Res Qua Turns Passed 44919 | 149 1712 531 2001 410 822 371 2632 2107 1109 343 1235 756 596 584 1354 2643 2132 895 674 3173 4769 431 2038 3956 819 870 823 771 690 1826 796 435 305 161 Spaces Moved 19716 | 70 884 306 843 270 496 184 1040 724 387 191 632 408 293 266 654 1235 975 546 386 1474 2356 223 745 1048 236 286 332 184 195 585 245 387 379 251 Core 848 | 4 2 . . . . . . 5 . . . . . . . . . . . . . . . . . . . . . 153 12 260 161 251 Treads 4577 | 66 882 306 570 . . . 117 270 348 . 7 . 5 2 605 1235 58 . . . 2 . . . . . . . . 2 . 15 87 . Legs 5179 | . . . . . . . . . . . . . . . . . . . . . 1155 223 745 1048 236 286 332 184 195 430 233 112 . . Wheels 8981 | . . . 273 270 496 184 923 449 39 191 625 408 288 264 49 . 917 546 386 1474 1199 . . . . . . . . . . . . . Hover . | . . . . . . . . . . . . . . . . . . . . . . . . . . . . . . . . . . . Flight 131 | . . . . . . . . . . . . . . . . . . . . . . . . . . . . . . . . . 131 . Fastest Speed 40 | 50 160 152 135 135 165 165 150 230 210 150 150 145 145 135 145 160 145 160 160 145 145 185 135 185 185 240 210 180 150 50 50 50 40 50 Average Speed 171 | 153 160 154 195 147 165 165 189 250 238 150 151 147 150 149 158 165 164 160 160 149 174 185 184 185 234 240 212 233 230 190 182 76 74 52 Slowest Speed 1700 | 160 350 160 232 165 165 165 320 1700 240 150 320 150 320 320 160 240 240 160 160 160 410 185 185 242 240 240 240 240 270 320 250 180 170 100 Overloaded Moves . | . . . . . . . . . . . . . . . . . . . . . . . . . . . . . . . . . . . Propulsion Burnouts . | . . . . . . . . . . . . . . . . . . . . . . . . . . . . . . . . . . . Robots Hopped 1 | . . . . . . . . . . . . . . . . . . . . . . . . . . . . . . . . . 1 . Cave-ins Triggered . | . . . . . . . . . . . . . . . . . . . . . . . . . . . . . . . . . . . Exploration Rate (%) 48 | 5 72 56 77 54 63 55 76 49 63 5 62 14 38 9 66 39 25 67 55 88 89 40 18 87 74 87 38 7 91 22 10 62 12 28 Regions Visited 34 Branch Regions 15 Pre-discovered Areas 4 | . . 1 . . 1 . . . . . . . . . . . . 1 . 1 . . . . . . . . . . . . . . Known Exits Taken 10 | . . . . . . 1 1 . 1 1 . 1 . 1 . 1 1 . . . . . 1 . . . 1 . . . . . . . Unknown Exits Taken 18 | 1 1 1 1 1 1 . . . . . . . . . . . . 1 1 1 1 1 . 1 1 1 . . . 1 1 1 1 . Scrap Searched 8 | . . 1 . 1 . . . . . . . . . . . . . 3 . 2 . 1 . . . . . . . . . . . . Spaces Dug 29 | . . . . . . . . . . . 9 . . . . . 1 . 1 . . . 13 2 . . . . . . . . 3 . Terrain Destroyed 715 | . . . . . . 41 5 12 6 . 89 . 5 9 11 143 2 10 5 73 29 . 116 25 6 9 19 12 12 36 3 33 4 . Melee . | . . . . . . . . . . . . . . . . . . . . . . . . . . . . . . . . . . . Projectile 228 | . . . . . . . 5 2 6 . . . . 1 1 8 2 . 5 2 19 . 49 25 6 9 19 12 12 34 3 4 4 . AOE 487 | . . . . . . 41 . 10 . . 89 . 5 8 10 135 . 10 . 71 10 . 67 . . . . . . 2 . 29 . . Terrain Rammed . | . . . . . . . . . . . . . . . . . . . . . . . . . . . . . . . . . . . Walls Destroyed . | . . . . . . . . . . . . . . . . . . . . . . . . . . . . . . . . . . . Machines Disabled . | . . . . . . . . . . . . . . . . . . . . . . . . . . . . . . . . . . . Actions | -11 -10 -10 -9 -9 -9 -8 -8 -8 -8 -7 -7 -7 -7 -7 -7 -7 -6 -6 -6 -6 -6 -5 -5 -5 -5 -5 -5 -4 -4 -4 -3 -3 -2 -2 --------- Run | Yrd Mat Min Mat Min Exi Min Mat Gar Mat Fac Gar Fac Gar Fac Gar Fac Fac Low Low Zio Dee Pro Fac Ext Cet Arc Hub Fac Was Fac Res Tes Res Qua Total 28587 | 98 1089 350 1077 281 499 247 1520 889 545 245 823 550 399 394 834 1595 1403 563 411 2267 2945 236 1281 2976 483 445 398 508 365 1166 578 457 395 275 Wait 5886 | 2 104 18 106 8 . 58 265 26 115 13 68 106 48 53 48 141 298 . 5 651 325 10 341 1619 215 127 41 256 123 396 290 8 1 1 Move 19681 | 69 883 305 842 269 495 183 1040 722 386 191 630 407 292 266 652 1234 974 545 385 1473 2355 222 744 1047 235 285 331 184 194 584 244 386 376 251 Hop 1 | . . . . . . . . . . . . . . . . . . . . . . . . . . . . . . . . . 1 . Pick Up 385 | 11 19 6 13 1 3 . 33 22 7 11 10 9 7 11 16 24 12 4 . 14 40 . 37 7 6 6 1 19 6 20 4 3 2 1 Fast Attach 222 | 7 11 1 12 . . . 13 7 3 4 1 2 . 5 10 28 20 1 1 3 31 1 12 3 2 2 . 2 3 11 13 8 3 2 Attach 169 | . . . 5 . . . 13 11 3 3 9 5 4 8 9 15 15 2 5 7 19 . 5 3 . 2 . 4 1 16 1 3 1 . Detach 170 | . 3 . 4 . . . 7 1 . 3 2 . . 4 11 9 15 2 . 3 33 . 13 12 3 3 . 10 3 22 6 1 . . Swap 139 | . 3 3 8 2 1 2 10 9 5 4 9 2 12 8 2 7 8 6 . 14 6 1 11 3 . . 1 . . 2 . . . . Drop 417 | 3 19 9 28 1 . . 31 20 11 13 5 12 4 11 20 36 17 2 . 5 59 . 28 8 10 7 1 18 2 21 7 5 3 1 Fire 1178 | 6 47 8 59 . . 4 106 45 15 3 49 7 25 26 66 101 44 1 15 97 74 2 90 46 12 13 23 15 33 82 13 40 6 5 Melee 6 | . . . . . . . . 5 . . . . . . . . . . . . 1 . . . . . . . . . . . . . Ram 17 | . . . . . . . 1 2 . . . . 1 . . . . . . . . . . . . . . . . 9 . . 2 2 Kick . | . . . . . . . . . . . . . . . . . . . . . . . . . . . . . . . . . . . Crush 2 | . . . . . . . 1 1 . . . . . . . . . . . . . . . . . . . . . . . . . . Escape Stasis 81 | . . . . . . . . 18 . . 27 . 6 2 . . . . . . . . . 10 . . . . . 3 . 3 . 12 Rewire 233 | . . . . . . . . . . . 13 . . . . . . . . . 2 . . 218 . . . . . . . . . . Trap . | . . . . . . . . . . . . . . . . . . . . . . . . . . . . . . . . . . . Miscellaneous . | . . . . . . . . . . . . . . . . . . . . . . . . . . . . . . . . . . . Route ------- -11/Scrapyard -10/Materials (discovered 5 exits: *Mat x2 / *Min x2 / [*Sub]) -10/Mines -9/Materials (discovered 4 exits: *Mat x3 / [*Min]) -9/Mines (discovered 2 exits: *Mat / *Exi) -9/Exiles -8/Mines (discovered 2 exits: *Mat x2) -8/Materials (discovered 3 exits: *Fac x2 / Gar) -8/Garrison (discovered 2 exits: *Mat x2) -8/Materials -7/Factory -7/Garrison (discovered 2 exits: *Fac x2) -7/Factory (discovered 2 exits: *Fac / Gar) -7/Garrison -7/Factory (discovered 2 exits: *Fac / Gar) -7/Garrison (discovered 2 exits: *Fac x2) -7/Factory -6/Factory (discovered 3 exits: *Fac / *Low x2) -6/Lower Caves -6/Lower Caves -6/Zion (discovered 2 exits: [*Dee] / [*Pro]) -6/Deep Caves -5/Proximity Caves -5/Factory (discovered 6 exits: *Fac x2 / Upp x2 / *Ext x2) -5/Extension (discovered 3 exits: *Fac x2 / *Cet) -5/Cetus (discovered 3 exits: *Fac x2 / *Arc) -5/Archives (discovered 3 exits: *Fac / *Hub x2) -5/Hub_04(d) (discovered 4 exits: *Fac x4) -4/Factory -4/Waste -4/Factory -3/Research -3/Testing -2/Research -2/Quarantine History --------- Turn | Location | Event 24 | -11/Scrapyard | Discovered new exit (range 16) 150 | -11/Scrapyard | Entered Materials 327 | -10/Materials | Build established: Mutant 562 | -10/Materials | Repaired Lgt. Cannon 596 | -10/Materials | Repaired Lgt. Treads 664 | -10/Materials | Discovered new exit (range 16) 750 | -10/Materials | Derelicts attacked the area 874 | -10/Materials | Discovered new exit (range 9) 1166 | -10/Materials | Discovered new exit (range 5) 1322 | -10/Materials | Discovered new exit (range 13) 1519 | -10/Materials | Discovered new exit (range 7) 1862 | -10/Materials | Entered Mines 1865 | -10/Mines | Found the Drone Emporium 1877 | -10/Mines | Found Prototype Device 1942 | -10/Mines | Learned location of Zion (-6) 2036 | -10/Mines | Met a Derelict shopkeep closing up shop 2041 | -10/Mines | Found DCF Scrap (14 items) 2250 | -10/Mines | Found a damaged Exp. Sensor Array with a note attached 2254 | -10/Mines | Found Prototype Device 2371 | -10/Mines | Discovered new exit (range 10) 2393 | -10/Mines | Entered Materials 2393 | -9/Materials | Evolved 2 slots: Utility x1, Weapon x1 2697 | -9/Materials | Build established: Tank 2721 | -9/Materials | Identified Decoy Drone Bay 3085 | -9/Materials | Discovered new exit (range 7) 3227 | -9/Materials | Repaired Adv. Treads 3300 | -9/Materials | Identified exit to Materials 4112 | -9/Materials | Identified Exp. Sensor Array 4345 | -9/Materials | Discovered new exit (range 5) 4394 | -9/Materials | Entered Mines 4438 | -9/Mines | Discovered exit to Materials (range 9) 4578 | -9/Mines | Deemed a non-threat by the Exiles lab entrance 4579 | -9/Mines | Discovered new exit (range 5) 4804 | -9/Mines | Entered Exiles 4846 | -9/Exiles | Met 8R-AWN 4872 | -9/Exiles | Met EX-HEX 4936 | -9/Exiles | Met EX-DEC 4983 | -9/Exiles | Met EX-BIN 5062 | -9/Exiles | Aligned with FarCom system 5064 | -9/Exiles | Given EX-Vault access code 5106 | -9/Exiles | Opened EX-Vault 5115 | -9/Exiles | Found Firepult 5120 | -9/Exiles | Found Field Lobotomy Kit 5156 | -9/Exiles | Warned to stay clear of 0b10 Research branches 5270 | -9/Exiles | Discovered new exit (range 14) 5626 | -9/Exiles | Stole two prototypes: Firepult, Field Lobotomy Kit 5626 | -9/Exiles | Entered Mines 5920 | -8/Mines | Discovered exit to Materials (range 13) 5934 | -8/Mines | Build established: Skirmisher 5989 | -8/Mines | Discovered exit to Materials (range 5) 5997 | -8/Mines | Entered Materials 5997 | -8/Materials | Evolved 2 slots: Propulsion x1, Utility x1 6067 | -8/Materials | Repaired Hardlight Generator 7089 | -8/Materials | Discovered new exit (range 16) 7142 | -8/Materials | Identified exit to Factory 7665 | -8/Materials | Lost 4 parts (1p2n1u) 7703 | -8/Materials | Discovered exit to Factory (range 16) 7896 | -8/Materials | Build established: Scavenger-Skirmisher 8356 | -8/Materials | Core integrity fell below 50% 8520 | -8/Materials | Garrison activated, responded to threat 8629 | -8/Materials | Identified exit to Garrison 8629 | -8/Materials | Entered Garrison 8721 | -8/Garrison | Build established: Skirmisher 8762 | -8/Garrison | Spotted B-75 Beast 8788 | -8/Garrison | Destroyed B-75 Beast 9015 | -8/Garrison | Triggered checkpoint 9043 | -8/Garrison | Triggered checkpoint 9069 | -8/Garrison | Triggered checkpoint 9158 | -8/Garrison | Triggered checkpoint 9323 | -8/Garrison | Triggered checkpoint 9390 | -8/Garrison | Garrison Relay disabled 9586 | -8/Garrison | Discovered new exit (range 13) 9979 | -8/Garrison | Attempted to access garrison exit controls, blocked by remote lockdown 10151 | -8/Garrison | Core integrity fell below 20% 10709 | -8/Garrison | Discovered new exit (range 12) 10736 | -8/Garrison | Entered Materials 11777 | -8/Materials | Discovered exit to Factory (range 20) 11845 | -8/Materials | Entered Factory 11845 | -7/Factory | Evolved 2 slots: Propulsion x1, Utility x1 11847 | -7/Factory | FarCom data flow suspended 12188 | -7/Factory | Identified exit to Garrison 12188 | -7/Factory | Entered Garrison 12232 | -7/Garrison | Triggered checkpoint 12285 | -7/Garrison | Garrison Relay disabled 12433 | -7/Garrison | Triggered checkpoint 12517 | -7/Garrison | Build established: Tank 12613 | -7/Garrison | Discovered new exit (range 28) 12671 | -7/Garrison | Identified exit to Factory 12690 | -7/Garrison | Triggered checkpoint 12712 | -7/Garrison | Garrison Relay disabled 12807 | -7/Garrison | Triggered checkpoint 12833 | -7/Garrison | Build established: Gunner 12952 | -7/Garrison | Discovered exit to Factory (range 14) 13113 | -7/Garrison | Attempted to access garrison exit controls, blocked by remote lockdown 13342 | -7/Garrison | Rescued a captive Derelict 13423 | -7/Garrison | Entered Factory 13423 | -7/Factory | Accompanied by 1 ally 13622 | -7/Factory | Discovered new exit (range 7) 13714 | -7/Factory | Identified exit to Factory 13950 | -7/Factory | Build established: Scavenger-Skirmisher 14159 | -7/Factory | Identified exit to Garrison 14179 | -7/Factory | Entered Garrison 14211 | -7/Garrison | Triggered checkpoint 14339 | -7/Garrison | Garrison Relay disabled 14396 | -7/Garrison | Triggered checkpoint 14399 | -7/Garrison | Triggered checkpoint 14506 | -7/Garrison | Build established: Scavenger-Tank 14594 | -7/Garrison | Discovered new exit (range 11) 14631 | -7/Garrison | Triggered checkpoint 14670 | -7/Garrison | Garrison Relay disabled 14715 | -7/Garrison | Identified exit to Factory 14775 | -7/Garrison | Entered Factory 14991 | -7/Factory | Discovered exit to Factory (range 16) 15211 | -7/Factory | Garrison activated, responded to threat 15253 | -7/Factory | System corruption reached 10% 15283 | -7/Factory | Lost 5 parts (1p3n1u) 15303 | -7/Factory | Found Prototype Launcher 15359 | -7/Factory | Identified exit to Garrison 15359 | -7/Factory | Entered Garrison 15548 | -7/Garrison | Build established: Scavenger-Gunner 15559 | -7/Garrison | Identified Rocket Array 15560 | -7/Garrison | Triggered checkpoint 15584 | -7/Garrison | Destroyed 11 combat bots 15767 | -7/Garrison | Triggered checkpoint 15815 | -7/Garrison | Garrison Relay disabled 15853 | -7/Garrison | Build established: Scavenger-Tank 15941 | -7/Garrison | Triggered checkpoint 16018 | -7/Garrison | Garrison Relay disabled 16219 | -7/Garrison | Triggered checkpoint 16309 | -7/Garrison | Discovered new exit (range 10) 16312 | -7/Garrison | Garrison Relay disabled 16326 | -7/Garrison | Build established: Scavenger-Gunner 16347 | -7/Garrison | Triggered checkpoint 16374 | -7/Garrison | Garrison Relay disabled 16487 | -7/Garrison | Attempted to access garrison exit controls, blocked by remote lockdown 16537 | -7/Garrison | Triggered checkpoint 16694 | -7/Garrison | Discovered new exit (range 13) 16713 | -7/Garrison | Entered Factory 17105 | -7/Factory | Garrison activated, responded to threat 17853 | -7/Factory | Core integrity fell below 50% 18380 | -7/Factory | Build established: Scavenger-Tank 18585 | -7/Factory | Discovered exit to Factory (range 10) 18713 | -7/Factory | First assault squad dispatched 18890 | -7/Factory | Build established: Tank 19009 | -7/Factory | Garrison activated, responded to threat 19163 | -7/Factory | Core integrity fell below 20% 19183 | -7/Factory | Destroyed 8 combat bots 19228 | -7/Factory | Lost 4 parts (2n2u) 19356 | -7/Factory | Entered another Factory area 19356 | -6/Factory | Evolved 2 slots: Utility x2 19539 | -6/Factory | Build established: Scavenger-Tank 20383 | -6/Factory | Repaired Imp. Heavy Treads 20961 | -6/Factory | Identified exit to Lower Caves 20968 | -6/Factory | Discovered new exit (range 13) 21086 | -6/Factory | Lost 3 parts (2u1w) 21231 | -6/Factory | Lost 6 parts (3u3w) 21434 | -6/Factory | Repaired Imp. Heavy Treads 21488 | -6/Factory | Entered Lower Caves 21497 | -6/Lower Caves | Met a Warlord Commander 21498 | -6/Lower Caves | Learned location of Warlord (-5) 21499 | -6/Lower Caves | Warlord Commander delivered Encrypted Comm Array 21503 | -6/Lower Caves | Found Encrypted Comm Array 21737 | -6/Lower Caves | Build established: Scavenger-Gunner 21938 | -6/Lower Caves | Discovered new exit (range 6) 22381 | -6/Lower Caves | Build established: Gunner 22383 | -6/Lower Caves | Entered another Lower Caves area 22383 | -6/Lower Caves | Spotted 2I-KIN(f) 22384 | -6/Lower Caves | Field Lobotomy Kit stolen by Master Thief 22385 | -6/Lower Caves | Encountered a Master Thief 22385 | -6/Lower Caves | Spotted JN-PNP(f) 22386 | -6/Lower Caves | Encountered a Master Thief 22390 | -6/Lower Caves | Plasma Rifle stolen by Master Thief 22543 | -6/Lower Caves | Spotted B-75 Beast 22597 | -6/Lower Caves | Destroyed B-75 Beast 22622 | -6/Lower Caves | Lost 6 parts (1n5u) 22675 | -6/Lower Caves | Discovered new exit (range 12) 22798 | -6/Lower Caves | Build established: Scavenger-Gunner 23057 | -6/Lower Caves | Entered Zion 23164 | -6/Zion | System corruption cleaned by Quarantine Array 23282 | -6/Zion | Given A8's code to call for help 23285 | -6/Zion | Discovered new exit (range 14) 23433 | -6/Zion | Build established: Scavenger-Mutant 23478 | -6/Zion | Received a hallucinogenic algorithm 23598 | -6/Zion | Found Prototype Energy Gun 23639 | -6/Zion | Learned 12 Factory zone layouts 23841 | -6/Zion | Build established: Scavenger-Gunner 23895 | -6/Zion | Met Imprinter 24093 | -6/Zion | Found GAL Module 24221 | -6/Zion | Learned Factory emergency access door positions 24653 | -6/Zion | Attacked by Zionites 24764 | -6/Zion | Destroyed Imprinter 24788 | -6/Zion | Extracted access codes from Imprinter's data core 25246 | -6/Zion | Build established: Gunner 25416 | -6/Zion | Enhanced Grunt warped into view, answering call for help 25421 | -6/Zion | Enhanced Grunt warped into view, answering call for help 25425 | -6/Zion | Opened final containment barrier to the Deep Caves 25454 | -6/Zion | Discovered new exit (range 5) 25599 | -6/Zion | Build established: Scavenger-Gunner 26225 | -6/Zion | Saw the warning signs outside the Deep Caves entrance 26230 | -6/Zion | Entered Deep Caves 26230 | -6/Deep Caves | Accompanied by 2 allies 26543 | -6/Deep Caves | Z-Facility disabled 26616 | -6/Deep Caves | Found Prototype Protection 26616 | -6/Deep Caves | Identified Zio. Weapon Casing 26690 | -6/Deep Caves | Found Prototype Protection 26690 | -6/Deep Caves | Identified Zio. Heavy Carapace 26817 | -6/Deep Caves | Found Zio. Weapon Casing 26828 | -6/Deep Caves | Found Zio. Weapon Casing 27127 | -6/Deep Caves | Discovered new exit (range 6) 27522 | -6/Deep Caves | Spotted AG-62826 27558 | -6/Deep Caves | Destroyed AG-62826 27950 | -6/Deep Caves | Found Zio. Weapon Casing 27961 | -6/Deep Caves | Build established: Scavenger-Tank 28231 | -6/Deep Caves | Spotted AG-60858 28290 | -6/Deep Caves | Core integrity fell below 50% 28331 | -6/Deep Caves | Destroyed AG-60858 28341 | -6/Deep Caves | Found Unknown Device 28359 | -6/Deep Caves | Lost 4 parts (1p3u) 28402 | -6/Deep Caves | Triggered Deep Caves wall 28402 | -6/Deep Caves | Spotted AS-35364 28402 | -6/Deep Caves | Spotted AS-55793 28419 | -6/Deep Caves | Exposed GOLEM chamber 28438 | -6/Deep Caves | Destroyed 32 combat bots 28443 | -6/Deep Caves | Core integrity fell below 20% 28446 | -6/Deep Caves | Destroyed AS-35364 28473 | -6/Deep Caves | Destroyed AS-55793 28478 | -6/Deep Caves | Identified GOLEM Unit 28488 | -6/Deep Caves | Lost 5 parts (2n2u1w) 28492 | -6/Deep Caves | Destroyed 8 combat bots 28656 | -6/Deep Caves | Found Latent Energy Streamer 28856 | -6/Deep Caves | Found GOLEM Unit 29100 | -6/Deep Caves | Build established: Golem 29117 | -6/Deep Caves | Found GOLEM Unit 29168 | -6/Deep Caves | Found GOLEM Unit 29174 | -6/Deep Caves | Found GOLEM Unit 29660 | -6/Deep Caves | Build established: Scavenger-Golem 30999 | -6/Deep Caves | Entered Proximity Caves 31001 | -5/Proximity Caves | Attracted the attention of an 0b10 checkpoint 31398 | -5/Proximity Caves | Discovered new exit (range 13) 31430 | -5/Proximity Caves | Entered Factory 31430 | -5/Factory | Evolved 2 slots: Power x1, Utility x1 31431 | -5/Factory | Identified exit to Extension 31431 | -5/Factory | Identified exit to Factory 32328 | -5/Factory | Cargo convoy interrupted 32778 | -5/Factory | Garrison activated, responded to threat 32930 | -5/Factory | First assault squad dispatched 33022 | -5/Factory | Identified exit to Upper Caves 33302 | -5/Factory | Destroyed 7 combat bots 33330 | -5/Factory | Discovered exit to Factory (range 12) 33468 | -5/Factory | Entered Extension 33516 | -5/Extension | Build established: Golem 33888 | -5/Extension | Repaired Adv. Cooling System 35802 | -5/Extension | Rescued a captive Derelict 36079 | -5/Extension | Spotted B-75 Beast 36483 | -5/Extension | Build established: Commander-Golem 36746 | -5/Extension | Destroyed B-75 Beast 36765 | -5/Extension | Spotted B-75 Beast 36772 | -5/Extension | Destroyed B-75 Beast 36803 | -5/Extension | Discovered exit to Factory (range 3) 36818 | -5/Extension | Lost 3 allies 36856 | -5/Extension | Rescued a captive Derelict 36923 | -5/Extension | Rescued a captive Derelict 37062 | -5/Extension | Lost 4 allies 37078 | -5/Extension | Rescued a captive Derelict 37191 | -5/Extension | Lost 5 allies 37198 | -5/Extension | Rescued a captive Derelict 37199 | -5/Extension | Rescued a captive Derelict 37314 | -5/Extension | Rescued A7 37386 | -5/Extension | Discovered exit to Factory (range 10) 37388 | -5/Extension | Discovered new exit (range 6) 37424 | -5/Extension | Entered Cetus 37424 | -5/Cetus | Accompanied by 12 allies (A7) 37429 | -5/Cetus | Acquired a Cetus Manufacturing Module code from A7 37447 | -5/Cetus | Spotted Cetus Guard 37447 | -5/Cetus | Spotted Cetus Guard 37451 | -5/Cetus | Spotted Cetus Guard 37453 | -5/Cetus | Spotted Cetus Guard 37454 | -5/Cetus | Destroyed Cetus Guard 37454 | -5/Cetus | Destroyed Cetus Guard 37469 | -5/Cetus | Destroyed Cetus Guard 37472 | -5/Cetus | Allies destroyed Cetus Guard 37496 | -5/Cetus | Lost 3 allies 37594 | -5/Cetus | Discovered exit to Factory (range 15) 37818 | -5/Cetus | Started Cetus Manufacturing Module 37843 | -5/Cetus | Manufactured an Enhanced Grunt 37864 | -5/Cetus | Discovered new exit (range 16) 37868 | -5/Cetus | Manufactured an Enhanced Grunt 37893 | -5/Cetus | Manufactured an Enhanced Grunt 37918 | -5/Cetus | Manufactured an Enhanced Grunt 37942 | -5/Cetus | Spotted Cetus Guard 37942 | -5/Cetus | Spotted Cetus Guard 37943 | -5/Cetus | Manufactured an Enhanced Grunt 37944 | -5/Cetus | Destroyed Cetus Guard 37944 | -5/Cetus | Spotted Cetus Guard 37947 | -5/Cetus | Spotted Cetus Guard 37952 | -5/Cetus | Destroyed Cetus Guard 37958 | -5/Cetus | Allies destroyed Cetus Guard 37962 | -5/Cetus | Allies destroyed Cetus Guard 37971 | -5/Cetus | Discovered exit to Factory (range 15) 37983 | -5/Cetus | Met Revision 17 37993 | -5/Cetus | Lost 5 allies 38174 | -5/Cetus | Security sweep announced 38243 | -5/Cetus | Entered Archives 38243 | -5/Archives | Accompanied by 9 allies (A7) 38325 | -5/Archives | Unable to access archive contents 38352 | -5/Archives | Unable to access archive contents 38359 | -5/Archives | Discovered new exit (range 15) 38385 | -5/Archives | Unable to access archive contents 38412 | -5/Archives | Unable to access archive contents 38419 | -5/Archives | Discovered exit to Factory (range 15) 38660 | -5/Archives | Discovered new exit (range 16) 39072 | -5/Archives | System corruption reached 10% 39113 | -5/Archives | Entered Hub_04(d) 39113 | -5/Hub_04(d) | Accompanied by 7 allies 39306 | -5/Hub_04(d) | Spotted B-75 Beast 39320 | -5/Hub_04(d) | Destroyed B-75 Beast 39713 | -5/Hub_04(d) | First assault squad dispatched 39803 | -5/Hub_04(d) | Network Hub disabled 39803 | -5/Hub_04(d) | Network Hub disabled 39823 | -5/Hub_04(d) | Spotted Lightning 39852 | -5/Hub_04(d) | Destroyed Lightning 39857 | -5/Hub_04(d) | Spotted Lightning 39884 | -5/Hub_04(d) | Destroyed Lightning 39908 | -5/Hub_04(d) | Lost 5 allies 39936 | -5/Hub_04(d) | Entered Factory 39936 | -4/Factory | Accompanied by 2 allies 39936 | -4/Factory | Evolved 2 slots: Utility x2 40140 | -4/Factory | Discovered new exit (range 7) 40166 | -4/Factory | Build established: Golem 40507 | -4/Factory | Repaired Centrium Heavy Treads 40561 | -4/Factory | Garrison activated, responded to threat 40638 | -4/Factory | Spotted B-86 Titan 40650 | -4/Factory | Destroyed B-86 Titan 40707 | -4/Factory | Sucked down chute 40707 | -4/Factory | Entered Waste 40720 | -4/Waste | Spotted C-40 Crusher 40722 | -4/Waste | EMP discharged 40738 | -4/Waste | Spotted C-40 Crusher 40755 | -4/Waste | Destroyed C-40 Crusher 40762 | -4/Waste | Spotted C-40 Crusher 40770 | -4/Waste | Destroyed C-40 Crusher 40822 | -4/Waste | EMP discharged 40828 | -4/Waste | Spotted C-40 Crusher 40837 | -4/Waste | Spotted C-40 Crusher 40842 | -4/Waste | Spotted C-40 Crusher 40850 | -4/Waste | Crushed by Compactor (0 parts destroyed, 1 dropped) 40881 | -4/Waste | Crushed by Compactor (1 part destroyed) 40887 | -4/Waste | Crushed by Compactor (0 parts destroyed, 1 dropped) 40891 | -4/Waste | Destroyed C-40 Crusher 40894 | -4/Waste | Destroyed C-40 Crusher 40900 | -4/Waste | Crushed by Compactor (0 parts destroyed, 1 dropped) 40922 | -4/Waste | EMP discharged 40922 | -4/Waste | System corruption reached 10% 40922 | -4/Waste | Destroyed C-40 Crusher 40972 | -4/Waste | Destroyed C-40 Crusher 41000 | -4/Waste | Lost 8 parts (1p1n5u1w) 41022 | -4/Waste | EMP discharged 41030 | -4/Waste | Found Damper Plating 41122 | -4/Waste | EMP discharged 41222 | -4/Waste | EMP discharged 41322 | -4/Waste | EMP discharged 41361 | -4/Waste | Discovered new exit (range 15) 41397 | -4/Waste | Entered Factory 41843 | -4/Factory | Spotted B-86 Titan 41919 | -4/Factory | System corruption reached 30% 41957 | -4/Factory | Destroyed B-86 Titan 41981 | -4/Factory | Lost 3 parts (2u1w) 42783 | -4/Factory | Found Unknown Device 42783 | -4/Factory | Identified Quantum Capacitor 42795 | -4/Factory | Found Quantum Capacitor 42798 | -4/Factory | Found Quantum Capacitor 42986 | -4/Factory | Found Prototype Launcher 43070 | -4/Factory | Cargo convoy interrupted 43070 | -4/Factory | Spotted Striker 43071 | -4/Factory | Identified Com. Tesla Bomb Launcher 43072 | -4/Factory | Spotted Striker 43082 | -4/Factory | Destroyed Striker 43086 | -4/Factory | Destroyed Striker 43100 | -4/Factory | Core integrity fell below 50% 43107 | -4/Factory | Destroyed 8 combat bots 43130 | -4/Factory | Released all parts (6) 43147 | -4/Factory | Lost 11 parts (2n6u3w) 43199 | -4/Factory | Core integrity fell below 20% 43220 | -4/Factory | Discovered new exit (range 3) 43223 | -4/Factory | Entered Research 43223 | -3/Research | Evolved 2 slots: Power x1, Utility x1 43374 | -3/Research | Build established: Mutant 43423 | -3/Research | Revision forces began assault on 0b10 43427 | -3/Research | Met up with Revision 17++ 43625 | -3/Research | Found Unknown Launcher 43625 | -3/Research | Identified Fusion Bomb Launcher 43905 | -3/Research | Discovered new exit (range 16) 43923 | -3/Research | Research terminal network offline 43929 | -3/Research | Build established: Golem 44019 | -3/Research | Entered Testing 44019 | -3/Testing | Spotted Superbehemoth 44028 | -3/Testing | Superbehemoth self-activated to run performance analysis 44065 | -3/Testing | Unstable Terrabomb Derivative detonated 44107 | -3/Testing | Scanned by Researcher 44127 | -3/Testing | System corruption reached 10% 44213 | -3/Testing | Released all parts (7) 44222 | -3/Testing | Core integrity fell below 50% 44226 | -3/Testing | Found Com. Tesla Bomb Launcher 44231 | -3/Testing | Found Com. Tesla Bomb Launcher 44239 | -3/Testing | Lost 20 parts (2p2n12u4w) 44317 | -3/Testing | Found Prototype Device 44317 | -3/Testing | Identified Adv. EM Disruption Field 44422 | -3/Testing | Discovered new exit (range 11) 44454 | -3/Testing | Entered Research 44454 | -2/Research | Evolved 2 slots: Propulsion x2 44474 | -2/Research | Spotted B-90 Cyclops 44494 | -2/Research | Build established: Mutant 44518 | -2/Research | Spotted B-90 Cyclops 44653 | -2/Research | Lost 3 parts (2u1w) 44750 | -2/Research | Discovered new exit (range 14) 44759 | -2/Research | Entered Quarantine 44791 | -2/Quarantine | Spotted Alpha 7 44831 | -2/Quarantine | Found Alien Artifact 44876 | -2/Quarantine | Core integrity fell below 50% 44890 | -2/Quarantine | Core integrity fell below 20% 44920 | -2/Quarantine | Destroyed by H-88 Terminator with KE Penetrator Last Messages --------------- 44889_ Penetrated by Slug. 44889_ Slug penetrates Wall. 44893_ Acquired Enh. Quantum Rifle. 44894_ Slug penetrates Wall. 44897_ Wall collapses. 44906_ Slug penetrates Cryopreservation Unit. 44909_ Slug penetrates Wall. 44909_ Penetrated by Slug. 44911_ Slug penetrates Cryopreservation Unit. 44911_ Cryopreservation Unit disabled. 44912_ Penetrated by Slug. 44914_ Slug penetrates Cryopreservation Unit. 44916_ Penetrated by Slug. 44916_ Slug penetrates Cryopreservation Unit. 44916_ Penetrated by Slug. 44916_ Enh. Quantum Rifle destroyed. 44920_ Slammed into H-88 Terminator. 44920_ Destabilizing: System corrupted (+1). 44920_ Penetrated by Slug. Map ----- +----------------------------------------------------+ | | | | | | | | | | | | | | | | | | | | | | | | | | | | | | | | | | | | | ?????????????????????????????????????????????????? | | ??????????????##############?????????????????????? | | ??????????????# ####??????????????????? | | ??????????????# ""#??????????????????? | | ??????????????# h ""#??????????????????? | | ??????????????# """ "" ""#???????????######## | | ??????????????# """ """ T"#???????????# | | ??????????????# """ """h@ """#???????????# | | ??????????????# h "" #???????????# | | ??????????????# """ """ ####???????????# "" | | ??????????????# """ """ #??????????????#"S "" | | ??????????????# """ """ !#??????????????#""" "" | | ??????????????# #??####????????# "" | | ??????????????# #??#""#????????# | | ??????????????#######;###;#####T"##############+## | | ???????????????# c | | ???????????????# | | ???????????????# ! | | ???????????????# = | | ???????????????####+##############" ########### | | ???????????????# #????????#"T#?????????# | | ???????????????# #????????####?????????# | | ???????????????# #?????????????????????# | | ???????????????# #?????????????????????# | | ???????????????# """ #?????????????????????# | | ???????????????# "*" #?????????????????????# | | ???????????????# """"" #?????????????????????# | | ???????????????# """"" #?????????????????????# | | ???????????????# #?????????????????????# | | ???????????????######?????????????????????????# | | ??????????????????????????????????????????????# | | ??????????????????????????????????????????????# | +----------------------------------------------------+ Best States ------------- Heat Dissipation 136 Energy Generation 65 Energy Capacity 1700 Matter Stores 300 Matter Capacity 300 Sight Range 16 Robot Scan Range 20 Terrain Scan Range 24 Terrain Scan Density 10 Power Amplification 20 Additional Mass Support 20 Armor Coverage 1700 Resistance: KI 15 Resistance: TH 15 Resistance: EX 15 Resistance: EM 90 Resistance: I 15 Resistance: S 15 Resistance: P 15 Weapon Shielding 100 Weapon Cycling 20 Phase Shifting 8 Evasion (%) 62 Targeting Accuracy 8 Melee Accuracy 8 Target Analysis 5 Core Analysis 8 Armor Integrity Analysis 30 Recoil Reduction 4 Matter Filtering 30 Energy Filtering 50 Particle Charging 20 Salvage Targeting 2 Offensive Hacking 12 Item Schematics ----------------- Hcp. Storage Unit | -10/Materials | Hacked Lgt. Angular Momentum Engine | -6/Zion | Archive Disruptor Cannon | -6/Zion | Archive Imp. Particle Charger | -6/Zion | Archive Wave Gun | -6/Zion | Archive Focal Shield | -6/Zion | Archive Thermic Laser | -6/Zion | Archive Adv. Hardlight Generator | -6/Zion | Archive Impulse Thruster | -6/Zion | Archive Imp. Reaction Control System | -6/Zion | Archive Imp. Kinecellerator | -6/Zion | Archive Magnetic Acceleration Cannon | -6/Zion | Archive Adv. Shield Generator | -6/Zion | Archive Adv. Drone Bay | -6/Zion | Archive Drone Bay | -6/Zion | Archive Robot Schematics ------------------ A-02 Transporter | -6/Zion | Archive S-27 Virus | -6/Zion | Archive L-41 Fighter | -6/Zion | Archive C-57 Dissector | -6/Zion | Archive Fabricated ------------ Nothing Alien Tech Used ----------------- None Achievements -------------- Equal Opportunity Bot Revolutionary Research That's One Door That Should Stay Closed Challenges ------------ None Game ------ Seed ChargeMappingRedirector Manual? 0 Play Time 05:59:37 Cumulative 124.2 hours Start 2025.02.27 @ 18:19:55 End 2025.02.28 @ 18:08:17 Sessions 17 Manual Loads 0 Difficulty Rogue Special Mode None Game No. 73 Rogue 73 Adventurer 0 Explorer 0 Win Type - Total 3 Types 3/0/0/0/0/0/0/0/0 Lore% 55 Gallery% 65 Achievement% 55 Wizard Run 0 Options --------- Layout 2 ASCII 1 Keyboard 1 Movement Numpad Keybinds 0 Fullscreen 2 Font 24/Terminus Map View 50x49 Zoom Use 0% Tactical HUD 1 Map Filters NONE Filters NONE Steam 1 RUN: 75259400-46be-4c32-9ca2-a845f6404e03